Cogmind - Beta 15 @@@ ROGUE MODE // 2025.06.07 @ 01:40:59 Player: Jammed Result: System corrupted Performance ------------- Evolutions (7) 3500 Regions Visited (27) 5400 Robots Destroyed (627) 3135 Value Destroyed (26704) 26704 Prototype IDs (71) 1420 Alien Tech Used (2) 400 Bonus (9223) 9223 TOTAL SCORE: 49782 Bonus ------- High Alert Combat Kills 4862 Follower Combat Kills 574 Network Hubs Disabled 200 Registered with UFD 300 Met Optimus in HQ 500 Met Zhirov 300 Met R17 at Cetus 500 Hacked Protovariant 500 Met R17 at Research 2000 Scanned by Researcher 500 Friendly Fire -1013 Cogmind --------- Core Integrity 0/1300 Matter 297/300 Energy 93/100 System Corruption 104% Temperature Warm (125) Movement Core (350) Ox6 Location -3/Testing Parts ------- > --- POWER (2) -------- (None) > --- PROPULSION (6) --- (None) > --- UTILITY (9) ------ Experimental Cooling System Advanced Transmission Jammer > --- WEAPON (5) ------- Null Cannon Coil Gun > --- INVENTORY (5) ---- Medium Treads Improved Weapon Cycler Warp Gun Perforator Peak State ------------ > --- POWER ------------ Heavy Antimatter Reactor Micro Antimatter Reactor > --- PROPULSION ------- Armored Heavy Treads Centrium Heavy Treads Centrium Heavy Treads > --- UTILITY ---------- Huge Storage Unit Advanced Visual Processing Unit Advanced Signal Interpreter Advanced Transmission Jammer Centrium Medium Armor Plating Advanced EM Shield System Mapper System Shield Long-range Tractor Beam > --- WEAPON ----------- Cooled Nova Cannon Coil Gun Coil Gun Heavy Machine Gun Hypervelocity Multirail > --- INVENTORY -------- Light Particle Reactor Light Particle Reactor Medium Treads Medium Treads Armored Medium Treads Advanced Cooling System Experimental Cooling System Matter Compressor Structural Scanner Advanced Sensor Array Terrain Scanner Improved Kinecellerator Improved Weapon Cycler Centrium Medium Armor Plating Improved Focal Shield Advanced Force Field Advanced Force Field Advanced Component Analysis Suite Transdimensional Reconstructor Warp Gun Cooled Proton Cannon Null Cannon Perforator Tactical Quantum Warhead [Rating: 178] Favorites ----------- Power Quantum Reactor Engine Improved Deuterium Engine Power Core Neutrino Core Reactor Quantum Reactor Propulsion Light Treads Treads Light Treads Leg Flexi-carbon Leg Wheel Armored Wheel Utility Huge Storage Unit Device Advanced Sensor Array Storage Huge Storage Unit Processor Improved Signal Interpreter Hackware System Shield Protection Centrium Medium Armor Plating Weapon Coil Gun Energy Gun Medium Laser Energy Cannon Phase Cannon Ballistic Gun Coil Gun Ballistic Cannon Hypervelocity Gauss Cannon Launcher Mini Grenade Launcher Special Weapon Mining Laser Build | -11 -10 -10 -9 -9 -9 -8 -8 -8 -8 -8 -6 -6 -6 -6 -5 -5 -5 -5 -5 -5 -4 -4 -4 -4 -3 -3 -3 ------- Run | Yrd Mat Min Mat Min Exi Min Mat Sto Rec Scr Fac Low Low Zio Pro Fac Ext Cet Arc Hub Fac Upp Upp Zhi Pro Res Tes Slots Evolved 14 | . . . 2 . . . 2 . . . 4 . . . . 2 . . . . 2 . . . . 2 . Power 1 | . . . . . . . . . . . 1 . . . . . . . . . . . . . . . . Propulsion 3 | . . . . . . . 1 . . . 1 . . . . . . . . . 1 . . . . . . Utility 7 | . . . 2 . . . . . . . 2 . . . . . . . . . 1 . . . . 2 . Weapon 3 | . . . . . . . 1 . . . . . . . . 2 . . . . . . . . . . . Parts Attached 366 | 1 13 1 26 2 . . 16 6 1 1 27 7 6 1 11 58 46 26 8 10 39 1 5 5 1 14 34 Power 46 | . 1 1 3 . . . 1 . . . 5 2 1 . 2 9 2 4 1 . 9 . . 1 . . 4 Engine 13 | . . 1 3 . . . 1 . . . 2 2 . . 1 1 . . . . 2 . . . . . . Core 18 | . 1 . . . . . . . . . 3 . 1 . 1 8 2 . . . 2 . . . . . . Reactor 15 | . . . . . . . . . . . . . . . . . . 4 1 . 5 . . 1 . . 4 Propulsion 85 | . 4 . 9 1 . . 5 2 . . 6 3 4 1 3 11 23 4 1 1 2 . . . . 4 1 Treads 56 | . 2 . 9 1 . . 5 2 . . 5 2 4 . 1 5 9 2 1 1 2 . . . . 4 1 Leg 17 | . 2 . . . . . . . . . . 1 . . 1 . 11 2 . . . . . . . . . Wheel 12 | . . . . . . . . . . . 1 . . 1 1 6 3 . . . . . . . . . . Hover . | . . . . . . . . . . . . . . . . . . . . . . . . . . . . Flight . | . . . . . . . . . . . . . . . . . . . . . . . . . . . . Utility 135 | 1 3 . 8 . . . 5 2 1 1 10 2 1 . 4 25 10 6 6 6 16 1 4 3 . 8 12 Device 67 | 1 1 . 2 . . . 1 1 . . 5 . . . 4 13 3 4 5 2 10 1 2 2 . 1 9 Storage 5 | . 2 . . . . . . . . 1 . . . . . . . . . . . . . . . 1 1 Processor 19 | . . . 1 . . . 2 1 . . 2 . 1 . . 1 3 . . . 3 . 2 . . 3 . Hackware 12 | . . . 1 . . . . . . . 2 . . . . 3 . . . 1 2 . . . . 2 1 Protection 32 | . . . 4 . . . 2 . 1 . 1 2 . . . 8 4 2 1 3 1 . . 1 . 1 1 Artifact . | . . . . . . . . . . . . . . . . . . . . . . . . . . . . Weapon 100 | . 5 . 6 1 . . 5 2 . . 6 . . . 2 13 11 12 . 3 12 . 1 1 1 2 17 Energy Gun 3 | . . . . . . . . . . . . . . . . . . 1 . 1 . . . . . . 1 Energy Cannon 15 | . 3 . 2 . . . . . . . 2 . . . . 3 . . . . . . . . . 1 4 Ballistic Gun 64 | . 1 . 2 . . . 4 . . . 4 . . . 2 9 10 5 . 2 12 . 1 1 1 . 10 Ballistic Cannon 6 | . . . . . . . . 1 . . . . . . . 1 1 2 . . . . . . . . 1 Launcher 7 | . . . 2 1 . . 1 1 . . . . . . . . . . . . . . . . . 1 1 Special Weapon 5 | . 1 . . . . . . . . . . . . . . . . 4 . . . . . . . . . Impact Weapon . | . . . . . . . . . . . . . . . . . . . . . . . . . . . . Slashing Weapon . | . . . . . . . . . . . . . . . . . . . . . . . . . . . . Piercing Weapon . | . . . . . . . . . . . . . . . . . . . . . . . . . . . . Special Melee Weapon . | . . . . . . . . . . . . . . . . . . . . . . . . . . . . Unidentified Prototypes 27 | . 1 . 2 . . . 1 2 . . . . 1 . . 6 . . . . . . . 4 . 1 9 Corrupted Parts 8 | . . . . . . . . . . . . . . . . 1 . . . . . . . . . . 7 System Corruption 49 | . . . . . . . . . . . . . . . . 5 . . . . . . . . . . 44 Parts Lost 171 | . 2 . 3 . . . 1 . . . 9 7 . . 11 17 37 16 . 4 27 . 1 . 1 2 33 Power 22 | . 1 . 1 . . . . . . . 4 . . . 2 1 1 3 . 1 4 . . . . . 4 Propulsion 51 | . . . . . . . . . . . 3 4 . . 3 10 17 6 . . 1 . . . . 2 5 Utility 41 | . 1 . 2 . . . 1 . . . 2 2 . . 4 2 6 1 . . 10 . . . . . 10 Weapon 57 | . . . . . . . . . . . . 1 . . 2 4 13 6 . 3 12 . 1 . 1 . 14 Highest Loss Streak 13 | . 1 . 1 . . . 1 . . . 5 5 . . 8 4 9 11 . 3 7 . 1 . 1 1 13 To Critical Strikes 6 | . . . . . . . . . . . 1 . . . . . 2 3 . . . . . . . . . Average Backups 20 | 6 9 11 14 14 15 15 14 14 15 15 22 21 22 23 21 23 22 20 22 22 19 21 22 23 23 24 23 Power 1 | 1 1 1 . . . . . . . . . . . . . 1 2 2 2 2 . 3 2 1 1 3 1 Propulsion 1 | 4 3 2 3 4 4 4 3 4 4 4 2 . . 1 . . . . 1 1 . . 1 4 4 3 2 Utility 10 | . 1 3 3 4 5 5 5 6 6 6 10 11 11 11 11 11 9 9 13 13 14 16 16 16 16 14 13 Weapon 5 | 1 2 5 6 6 6 6 5 4 5 4 6 5 5 7 6 5 6 4 5 6 3 2 1 1 1 1 4 Tool/Special . | . . . . . . . . . . . . . . . . . . . . . . . . . . . . Unused Backups 64 | 6 4 . 5 . . . 1 1 . 1 4 . 1 1 . 6 6 1 3 1 3 . . 2 2 2 14 Power 10 | 1 1 . . . . . . . . . . . . . . 1 2 1 . . . . . . 2 . 2 Propulsion 13 | 2 3 . 3 . . . . . . . . . . . . . 2 . . . 1 . . . . . 2 Utility 24 | 1 . . . . . . . 1 . . 3 . 1 1 . 2 1 . 1 1 1 . . 2 . 2 7 Weapon 16 | 2 . . 2 . . . 1 . . 1 1 . . . . 3 1 . 2 . 1 . . . . . 2 Tool/Special 1 | . . . . . . . . . . . . . . . . . . . . . . . . . . . 1 Average Slot Usage (%) 93 | . 88 100 98 100 100 100 99 99 100 100 97 94 93 99 92 96 94 69 87 87 82 90 89 67 89 89 84 Engine 4 | . 2 9 10 11 11 11 8 8 9 9 5 12 9 6 8 2 . . . . . . . . . . . Core 2 | . 11 4 . . . . . . . . 5 . 2 6 3 7 10 . . . . 5 5 2 . . . Reactor 2 | . . . . . . . . . . . . . . . . . . 7 11 10 9 5 5 7 10 9 8 Treads 19 | . 5 28 22 22 22 22 26 26 27 27 22 17 18 30 25 17 14 2 15 16 13 20 20 20 20 17 13 Leg 1 | . 22 . . . . . . . . . . 3 5 . . . 4 12 . . . . . . . . . Wheel 1 | . . . . . . . . . . . 3 . . . 4 8 5 . . . . . . . . . . Device 9 | . 3 14 10 11 11 11 9 1 . . 9 6 6 6 9 9 12 12 10 10 14 15 15 15 15 12 12 Storage 6 | . 14 14 11 11 11 11 9 9 9 9 6 6 6 6 6 5 5 5 5 5 5 5 5 5 5 4 3 Processor 12 | . . . 11 11 11 11 9 17 18 18 19 20 18 18 13 11 9 11 11 11 9 10 10 10 10 9 8 Hackware 1 | . . . 3 . . . . . . . . . . . . 1 . . . . 1 . . . . 8 8 Protection 5 | . . . 6 11 11 11 8 7 9 9 2 6 5 6 1 3 4 1 5 5 4 5 4 4 5 3 3 Energy Cannon 1 | . 4 28 7 . . . . . . . 2 . 4 . . . . 2 . . . . . . . . 1 Ballistic Gun 20 | . 10 . 13 18 22 22 26 26 26 27 17 19 13 17 16 25 23 9 27 24 23 25 24 2 24 22 19 Peak Build Rating 178 | 7 14 14 20 19 19 19 32 33 33 36 60 62 74 74 74 85 96 148 149 147 156 127 122 123 125 141 178 Average Rating 77 | 6 8 12 17 18 19 19 26 31 32 33 54 59 65 73 64 75 79 89 144 142 140 122 121 97 123 129 158 On Entrance 67 | 6 7 14 12 18 19 19 19 31 32 33 36 52 60 74 74 64 74 85 148 144 125 126 122 122 123 124 136 Naked Turns . | . . . . . . . . . . . . . . . . . . . . . . . . . . . . Heaviest Build 170 | 14 34 34 41 39 38 38 50 50 49 107 126 130 130 130 127 144 161 159 160 159 163 149 145 148 149 148 170 Greatest Support 240 | 20 40 40 40 40 40 40 60 60 60 60 88 85 126 126 126 102 115 160 188 188 240 206 206 206 206 206 220 Greatest Overweight (x) 43 | . . . 1 . . . . . . 1 10 43 2 1 10 13 10 5 . 1 . . . . . 1 1 Average Overweight (x) 1 | . . . . . . . . . . . 5 6 1 . 7 5 6 1 . . . . . . . . . Largest Inventory Capacity 25 | 8 15 15 15 15 15 15 15 15 15 25 25 25 25 25 25 25 25 25 25 25 25 25 25 25 25 25 25 Average Capacity 22 | 8 10 15 15 15 15 15 15 15 15 18 25 25 25 25 25 25 25 25 25 25 25 25 25 25 25 25 24 Most Carried 25 | 7 11 11 15 15 15 15 15 15 15 20 25 25 25 25 25 25 25 25 25 25 25 23 25 25 25 25 25 Average Carried 21 | 6 9 11 14 14 15 15 14 14 15 15 23 22 23 24 22 24 23 21 24 24 21 22 23 24 24 24 24 Final Capacity 25 | 8 15 15 15 15 15 15 15 15 15 25 25 25 25 25 25 25 25 25 25 25 25 25 25 25 25 25 5 Final Carried 25 | 7 11 11 14 15 15 15 15 15 15 20 21 23 25 25 22 25 22 25 25 25 22 23 25 24 25 25 5 Class Distribution -------------------- 24% | Gunner 24% | Scavenger-Tank 18% | Scavenger-Skirmisher 16% | Scavenger-Gunner 9% | Mutant 4% | Scavenger-Mutant Dominant Class ---------------- Mutant | -10/Materials Mutant | -10/Mines Mutant | -9/Materials Scavenger-Mutant | -9/Mines Mutant | -9/Exiles Mutant | -8/Mines Gunner | -8/Materials Gunner | -8/Storage Gunner | -8/Recycling Gunner | -8/Scraptown Scavenger-Gunner | -6/Factory Gunner | -6/Lower Caves Gunner | -6/Lower Caves Scavenger-Gunner | -6/Zion Scavenger-Skirmisher | -5/Proximity Caves Scavenger-Skirmisher | -5/Factory Scavenger-Tank | -5/Extension Scavenger-Mutant | -5/Cetus Scavenger-Tank | -5/Archives Scavenger-Tank | -5/Hub_04(d) Scavenger-Tank | -4/Factory Scavenger-Skirmisher | -4/Upper Caves Scavenger-Skirmisher | -4/Upper Caves Scavenger-Mutant | -4/Zhirov Scavenger-Skirmisher | -3/Proximity Caves Scavenger-Skirmisher | -3/Research Scavenger-Tank | -3/Testing Resources | -11 -10 -10 -9 -9 -9 -8 -8 -8 -8 -8 -6 -6 -6 -6 -5 -5 -5 -5 -5 -5 -4 -4 -4 -4 -3 -3 -3 ----------- Run | Yrd Mat Min Mat Min Exi Min Mat Sto Rec Scr Fac Low Low Zio Pro Fac Ext Cet Arc Hub Fac Upp Upp Zhi Pro Res Tes Matter Collected 27181 | 210 318 31 598 330 . . 787 882 274 30 1950 588 332 69 583 3838 4065 586 692 1222 4205 531 768 154 384 388 3366 Remotely 5003 | . . . . . . . . . . . . . . . . 363 789 147 464 525 1537 . 34 . . . 1144 Salvage Created 33266 | 119 694 194 1251 374 . . 1343 1142 594 . 2151 502 282 . 830 4596 5115 556 692 1364 5886 384 525 184 239 202 4047 Parts 1571 | 10 41 22 102 6 . . 83 54 24 . 109 15 13 . 42 199 177 42 30 80 263 7 24 3 14 14 197 Haulers Intercepted 21 | . 2 . 4 . . . 4 2 . . 2 . . . . 4 . . . . 1 . . . . 1 1 Recyclers Shooed 19 | 1 . 1 1 1 . . 1 1 1 . . . . . . 1 . . . 1 9 . . . . . 1 Parts Field Recycled . | . . . . . . . . . . . . . . . . . . . . . . . . . . . . Retrieved Matter . | . . . . . . . . . . . . . . . . . . . . . . . . . . . . Parts Self-Destructed 84 | . . . . . . . . . . . . 13 . . 41 . . . . . . 5 10 2 13 . . Prevented 3 | . . . . . . . . . . . . 1 . . 2 . . . . . . . . . . . . Kills | -11 -10 -10 -9 -9 -9 -8 -8 -8 -8 -8 -6 -6 -6 -6 -5 -5 -5 -5 -5 -5 -4 -4 -4 -4 -3 -3 -3 ------- Run | Yrd Mat Min Mat Min Exi Min Mat Sto Rec Scr Fac Low Low Zio Pro Fac Ext Cet Arc Hub Fac Upp Upp Zhi Pro Res Tes Combat Hostiles Destroyed 469 | . 15 11 29 19 . . 22 18 7 . 34 6 1 . 18 61 80 8 4 16 57 3 7 . 5 1 47 Melee 2 | . . . . . . . . . . . . . . . . . . . . . 2 . . . . . . Guns 368 | . 15 . 6 18 . . 18 14 5 . 27 5 . . 14 49 71 4 4 16 54 3 7 . 5 1 32 Cannons 49 | . . 11 10 . . . . . 2 . 5 . 1 . . 2 4 4 . . . . . . . . 10 AOE 41 | . . . 12 1 . . 4 4 . . 1 . . . 4 10 5 . . . . . . . . . . Classes Destroyed 24 | 2 4 1 2 2 . . . 2 . . 3 1 1 . 1 1 1 . . 1 . . . . . . 2 Worker 27 | . . 1 2 . . . . 3 . . 1 . . . . 3 . . . 4 9 . . . . 2 2 Builder 23 | . . . . . . . . 1 . . 1 . . . . 2 2 . . 3 13 . . . . . 1 Tunneler 4 | 3 . 1 . . . . . . . . . . . . . . . . . . . . . . . . . Hauler 21 | . 2 . 4 . . . 4 2 . . 2 . . . . 4 . . . . 1 . . . . 1 1 Recycler 38 | 1 . . 1 . . . 2 3 3 . 2 . . . . 7 1 . . 1 15 . . . . . 2 Mechanic 1 | . . . . . . . . . . . . . . . . 1 . . . . . . . . . . . Operator 14 | . . . 2 . . . 1 . . . . . . . . . 1 . 9 . 1 . . . . . . Watcher 34 | . 2 . 5 . . . 5 2 . . 2 . . . . 5 1 2 . 4 3 . . . . . 3 Swarmer 97 | . 5 11 14 . . . 4 4 . . 8 . 1 . 6 16 8 . . . 9 1 5 . 5 . . Saboteur 4 | . . . . . . . . . . . . . . . 1 1 2 . . . . . . . . . . Grunt 149 | . 10 . 7 3 . . 12 6 2 . 10 4 . . 3 18 40 . . 1 20 . . . . . 13 Brawler 9 | . . . . . . . . 1 1 . . . . . 2 1 4 . . . . . . . . . . Duelist 14 | . . . . 1 . . . . 1 . . . . . 3 . 6 . . . 1 . . . . . 2 Protector 4 | . . . . . . . . . . . . . . . . . 3 . . . 1 . . . . . . Researcher 5 | . . . . . . . . . . . . . . . . . . . . . . . . . . . 5 Sentry 47 | . . . 8 . . . 6 7 3 . 2 . . . 1 3 7 . 4 3 2 1 . . . . . Specialist 2 | . . . . . . . . . . . . . . . . . . . . 2 . . . . . . . Hunter 45 | . . . . . . . . . . . 5 1 . . 1 7 9 . . 2 11 . . . . . 9 Programmer 67 | . . . . . . . . . . . 8 . . . 1 15 . . . 8 12 1 . . . 1 21 Behemoth 3 | . . . . . . . . . . . 1 1 . . . . . . . . 1 . . . . . . Cetus Guard 8 | . . . . . . . . . . . . . . . . . . 8 . . . . . . . . . Striker 2 | . . . . . . . . . . . . . . . . . . . . . . . . . . . 2 Decomposer 8 | . . . . . . . . . . . . 2 . . . . . . . . . . 6 . . . . Samaritan 10 | . . . . . . . . . . . . 1 5 . . . . . . . . . 2 . 2 . . Assembled 15 | . . . . 15 . . . . . . . . . . . . . . . . . . . . . . . Thug 1 | . . . . . . . . . . . . . . . . . . . . . . . 1 . . . . Savage 2 | . . . . . . . . . . . . . . . . . 1 . . . . 1 . . . . . Butcher 3 | . . . . . . . . . . . . . . . . . 2 . . . . . 1 . . . . Mutant 3 | . . . . . . . . . . . . . 1 . . . . . . . . 1 1 . . . . Best Kill Streak 23 | 3 3 3 7 7 . . 5 5 2 . 4 4 1 . 6 7 10 3 4 9 23 1 5 . 5 2 6 Combat Bots Only 10 | . 3 3 7 7 . . 5 4 2 . 4 4 1 . 6 6 10 3 2 3 6 1 5 . 5 1 5 Max Kills in Single Turn 4 | 1 1 1 3 1 . . 2 4 1 . 2 1 1 . 3 3 3 1 1 3 4 1 1 . 2 1 3 Gunslinging 1 | . . . . . . . . . . . . . . . . 1 1 . . 1 . . . . 1 . . Exploded 4 | . . . 2 1 . . 2 4 . . 1 . . . 3 3 2 . . . . . . . . . . Melee 1 | . . . . . . . . . . . . . . . . . . . . . 1 . . . . . . Uniques/NPCs Destroyed . | . . . . . . . . . . . . . . . . . . . . . . . . . . . . Combat | -11 -10 -10 -9 -9 -9 -8 -8 -8 -8 -8 -6 -6 -6 -6 -5 -5 -5 -5 -5 -5 -4 -4 -4 -4 -3 -3 -3 -------- Run | Yrd Mat Min Mat Min Exi Min Mat Sto Rec Scr Fac Low Low Zio Pro Fac Ext Cet Arc Hub Fac Upp Upp Zhi Pro Res Tes Hostile Shots Fired 3228 | . 78 47 113 47 . . 56 46 11 . 273 93 9 . 70 283 432 121 13 111 762 10 37 . 51 14 551 Missed 816 | . 22 10 32 16 . . 20 21 4 . 90 22 3 . 18 58 100 39 5 18 152 3 11 . 12 5 155 Hits 2412 | . 56 37 81 31 . . 36 25 7 . 183 71 6 . 52 225 332 82 8 93 610 7 26 . 39 9 396 Melee 72 | . . . . 2 . . . . 1 . . . . . 8 1 34 . . . 7 . 1 . . . 18 Projectile 2340 | . 56 37 81 29 . . 36 25 6 . 183 71 6 . 44 224 298 82 8 93 603 7 25 . 39 9 378 AOE 3 | . . . . . . . . . . . 2 . . . . . . . . . 1 . . . . . . Critical Strikes 131 | . . 1 4 1 . . 3 2 . . 7 5 . . 7 5 21 9 1 12 25 . 1 . . . 27 Part Disruptions 7 | . . . . . . . . . . . . . . . . . . . . 1 1 2 . . . . 3 Damage Taken 40956 | . 591 309 920 480 . . 594 390 125 . 2912 1265 91 . 1091 3798 5779 2253 215 2592 8241 158 483 . 727 191 7751 Core 3269 | . 159 41 107 82 . . 61 43 . . 404 76 14 . 123 293 378 236 . 70 349 9 . . 40 . 784 Absorbed by Shields 4411 | . . . . . . . . . . . 214 162 . . 77 209 770 . . . 2123 34 . . . . 822 Reduced by Siege Mode 949 | . . . . . . . . . . . . . . . . . . . 7 85 518 . 42 . . . 297 Ignored by Resistances 1961 | . . . . . . . . . . . 17 123 . . . 353 228 . . 58 230 . . . 134 . 818 Regen/Repaired (Parts) 5610 | . . . 136 . . . 46 236 . . 569 . . . . 734 168 . . . 2492 . . . . 1229 . Core Remaining (%) 49 | 100 . 20 . . . 52 . . . 81 . . . . 27 . . . . 2 . . . . 65 . . Volleys Fired 1770 | 12 59 26 99 45 . . 66 65 28 . 202 33 22 1 32 198 224 56 24 72 200 26 28 13 12 12 215 Largest 5 | 2 2 2 2 2 . . 3 3 3 . 3 3 3 1 3 5 5 5 5 5 5 5 5 1 5 5 5 Hottest 273 | 90 136 136 136 46 . . 75 75 75 . 145 90 145 30 90 159 207 240 175 240 240 159 159 33 156 156 273 Shots Fired 4969 | 24 115 49 150 88 . . 182 181 62 . 418 81 40 1 91 681 784 109 116 207 789 74 129 13 48 52 485 Gun 4318 | 24 112 . 64 86 . . 174 179 51 . 306 71 18 1 88 612 697 44 116 207 789 74 129 13 48 52 363 Cannon 610 | . 2 49 77 . . . 4 . 11 . 112 10 22 . . 64 78 59 . . . . . . . . 122 Launcher 34 | . . . 9 2 . . 4 2 . . . . . . 3 5 9 . . . . . . . . . . Special 7 | . 1 . . . . . . . . . . . . . . . . 6 . . . . . . . . . Kinetic 4249 | . 56 . 64 86 . . 174 179 51 . 306 71 18 1 88 612 716 81 116 172 772 74 129 13 48 52 370 Thermal 552 | 24 59 49 45 . . . . . . . 102 5 22 . . 55 59 22 . 35 17 . . . . . 58 Explosive 34 | . . . 9 2 . . 4 2 . . . . . . 3 5 9 . . . . . . . . . . Electromagnetic 128 | . . . 32 . . . 4 . 11 . 10 5 . . . 9 . . . . . . . . . . 57 Robot Hit Streak 28 | 3 10 5 19 12 . . 13 21 28 . 24 14 8 . 17 26 19 10 15 19 27 8 14 6 14 6 12 Robot Miss Streak 7 | 2 4 5 3 3 . . 4 2 2 . 3 2 3 . 3 5 6 7 3 2 5 3 5 1 7 3 6 Penetration Max 3 | . . . . . . . . . . . 1 . . . 2 1 3 1 . 1 2 . . . . 1 1 Secondary Targets 69 | . 3 . 1 1 . . 2 4 . . 3 2 . . 6 9 13 1 . 1 9 . 2 . 2 . 10 Max Gunslinging Chain 1 | . 1 . 1 1 . . 1 1 . . 1 1 . . 1 1 1 1 . 1 1 . 1 . 1 . 1 Shots Hit Robots 2982 | 14 71 22 102 61 . . 129 119 44 . 256 61 17 . 60 392 466 53 65 114 523 29 60 11 25 32 256 Core Hits 1371 | 5 33 12 50 34 . . 62 45 15 . 93 20 11 . 34 185 245 24 30 48 219 13 24 4 12 9 144 Critical Kills 73 | . . 1 . . . . . . . . 4 1 2 . . 12 11 6 5 6 8 1 1 . . . 15 Critical Parts Destroyed 149 | . . . . . . . . 2 . . 3 2 . . 4 25 28 8 8 12 18 1 3 . . . 35 Critical Strikes 244 | . 4 1 . . . . . 3 1 . 8 4 2 . 5 38 39 17 17 19 28 2 4 . . . 52 Burn 4 | . 4 . . . . . . . . . . . . . . . . . . . . . . . . . . Meltdown 3 | . . 1 . . . . . . . . . 1 1 . . . . . . . . . . . . . . Destroy 234 | . . . . . . . . 3 . . 8 3 1 . 5 38 39 17 17 19 28 2 4 . . . 50 Corrupt 3 | . . . . . . . . . 1 . . . . . . . . . . . . . . . . . 2 Melee Attacks . | . . . . . . . . . . . . . . . . . . . . . . . . . . . . Impact . | . . . . . . . . . . . . . . . . . . . . . . . . . . . . Slashing . | . . . . . . . . . . . . . . . . . . . . . . . . . . . . Piercing . | . . . . . . . . . . . . . . . . . . . . . . . . . . . . Sneak Attacks . | . . . . . . . . . . . . . . . . . . . . . . . . . . . . Combat Hostiles . | . . . . . . . . . . . . . . . . . . . . . . . . . . . . Follow-up Attacks . | . . . . . . . . . . . . . . . . . . . . . . . . . . . . Damage Inflicted 74899 | 161 958 455 2823 956 . . 2547 2250 794 . 5621 1457 449 . 1724 9467 12961 1411 1731 3565 14719 766 1433 292 536 830 6993 Guns 62955 | 161 937 . 704 922 . . 1878 2105 700 . 4226 1167 179 . 1475 7969 11703 733 1731 3537 13937 766 1433 292 536 830 5034 Cannons 7089 | . 21 455 1213 . . . 31 . 94 . 1037 227 270 . . 324 780 678 . . . . . . . . 1959 Explosions 4416 | . . . 906 34 . . 638 141 . . 356 63 . . 249 1174 442 . . . 413 . . . . . . Melee . | . . . . . . . . . . . . . . . . . . . . . . . . . . . . Ramming 439 | . . . . . . . . 4 . . 2 . . . . . 36 . . 28 369 . . . . . . Kinetic 62506 | . 446 . 704 922 . . 1878 2105 700 . 4226 1167 179 . 1475 7969 11929 1203 1731 3383 13488 766 1433 292 536 830 5144 Thermal 5928 | 161 512 455 941 . . . . . . . 1133 184 270 . . 139 554 208 . 154 449 . . . . . 768 Explosive 3717 | . . . 626 34 . . 638 141 . . . . . . 249 1174 442 . . . 413 . . . . . . Electromagnetic 2309 | . . . 552 . . . 31 . 94 . 260 106 . . . 185 . . . . . . . . . . 1081 Impact . | . . . . . . . . . . . . . . . . . . . . . . . . . . . . Slashing . | . . . . . . . . . . . . . . . . . . . . . . . . . . . . Piercing . | . . . . . . . . . . . . . . . . . . . . . . . . . . . . Highest Corruption 104 | . 2 2 . . . . . . . . 5 5 5 5 5 10 18 18 18 27 22 23 23 23 23 . 104 Average Corruption 10 | . 2 2 . . . . . . . . 2 5 5 5 4 3 14 18 12 4 14 22 23 23 23 . 20 Corruption Purged 28 | . . . . . . . . . . . . . . . . 10 . . 18 . . . . . . . . Corruption Blocked . | . . . . . . . . . . . . . . . . . . . . . . . . . . . . Effects 1225 | . 4 13 . . . . . . . . 94 108 43 1 49 75 164 34 25 34 120 98 93 16 86 . 168 Message Errors 279 | . 1 2 . . . . . . . . 24 26 12 . 13 17 37 6 2 10 25 22 26 7 18 . 31 Matter Fused 256 | . . 4 . . . . . . . . 26 20 6 1 16 17 25 6 7 9 23 26 13 5 19 . 33 Heat Flow Errors 119 | . 1 3 . . . . . . . . 8 15 7 . 2 14 9 3 1 1 9 13 9 . 11 . 13 Energy Discharges 149 | . 1 . . . . . . . . . 11 16 5 . 5 9 24 3 7 4 12 6 14 . 13 . 19 Parts Rejected 13 | . . . . . . . . . . . 1 . . . . . 4 3 . 2 2 . . . . . 1 Parts Fused 12 | . . . . . . . . . . . 1 2 . . . . 1 1 . . 2 1 1 1 . . 2 Data Loss (minor) 147 | . . 2 . . . . . . . . 12 20 4 . 6 9 15 4 3 4 13 13 12 1 8 . 21 Data Loss (major) 66 | . 1 . . . . . . . . . 3 4 5 . 5 5 10 5 . 2 6 3 4 1 6 . 6 Misfires 51 | . . 1 . . . . . . . . 4 4 3 . 1 3 7 1 . 1 3 5 7 . 3 . 8 Alerts 23 | . . 1 . . . . . . . . 1 1 1 . 1 . 3 1 1 1 3 4 1 1 1 . 2 Misdirections 5 | . . . . . . . . . . . . . . . . . 1 . . . 1 . . . 1 . 2 Weapon Failures 105 | . . . . . . . . . . . 3 . . . . 1 28 1 4 . 21 5 6 . 6 . 30 Overload Shots 38 | . . . . . . . . . . . . . . . . . . 6 . 20 5 . . . . . 7 Effects 1 | . . . . . . . . . . . . . . . . . . . . . . . . . . . 1 Heat Surge 1 | . . . . . . . . . . . . . . . . . . . . . . . . . . . 1 Overflow Damage 436 | . . 4 34 . . . 45 15 . . 106 36 14 . 17 2 56 . . 8 . . . . . . 99 Projectiles 174 | . . 4 2 . . . . . . . 2 36 14 . . . 17 . . . . . . . . . 99 Explosions 254 | . . . 32 . . . 45 15 . . 104 . . . 17 2 39 . . . . . . . . . . Melee 8 | . . . . . . . . . . . . . . . . . . . . 8 . . . . . . . Knockbacks 24 | . . . . . . . . . . . . . . . . . 6 2 . . 2 . . . . . 14 Impact 3 | . . . . . . . . . . . . . . . . . 1 . . . 2 . . . . . . Kinetic 21 | . . . . . . . . . . . . . . . . . 5 2 . . . . . . . . 14 Secondary . | . . . . . . . . . . . . . . . . . . . . . . . . . . . . Self-Inflicted Damage 357 | . . . . . . . . 30 . . 1 . . . 38 89 13 . . 98 88 . . . . . . Shots 6 | . . . . . . . . 1 . . . . . . 1 2 . . . 1 1 . . . . . . Rammed 38 | . . . . . . . . 1 . . 1 . . . . . 3 . . 1 32 . . . . . . Targets Rammed 41 | . . . . . . . . 1 . . 1 . . . . . 3 . . 1 34 . . . . 1 . Kicked . | . . . . . . . . . . . . . . . . . . . . . . . . . . . . Crushed 3 | . . . . . . . . . . . . . . . . . . . . . 2 . . . . 1 . Highest Temperature 468 | 150 252 387 195 . . . 54 251 359 . 298 330 468 . 295 333 372 360 259 372 434 313 271 . 238 36 246 Average Temperature 89 | 64 67 125 49 . . . 14 77 90 . 70 115 116 . 106 68 104 102 69 96 111 103 92 . 96 14 51 Received Heat Transfer 5368 | . 264 . 270 54 . . 297 171 27 . 361 326 . . 174 629 1181 351 18 27 781 . 36 . . 18 383 Effects 46 | . . 3 . . . . . . 3 . 2 5 4 . . 3 12 . . 3 7 3 . . . . 1 Shutdowns 5 | . . 1 . . . . . . 1 . . . 2 . . . . . . . 1 . . . . . . Energy Bleed 4 | . . 1 . . . . . . . . . . 1 . . . . . . 1 . . . . . . 1 Interference 32 | . . 1 . . . . . . 2 . 2 5 . . . 2 10 . . 2 5 3 . . . . . Matter Decay 1 | . . . . . . . . . . . . . . . . . . . . . 1 . . . . . . Short Circuit 1 | . . . . . . . . . . . . . . . . 1 . . . . . . . . . . . Damage (minor) 3 | . . . . . . . . . . . . . 1 . . . 2 . . . . . . . . . . Siege Activations 37 | . . . . . . . . . . . . . . . . . . 1 8 8 13 1 4 . . . 2 Total Turns 1012 | . . . . . . . . . . . . . . . . . . 6 100 189 535 8 55 . . . 119 Longest Duration 156 | . . . . . . . . . . . . . . . . . . 6 21 54 156 8 29 . . . 96 Martial Activations . | . . . . . . . . . . . . . . . . . . . . . . . . . . . . Shielding Activations . | . . . . . . . . . . . . . . . . . . . . . . . . . . . . Robots Disrupted . | . . . . . . . . . . . . . . . . . . . . . . . . . . . . Combat Hostiles . | . . . . . . . . . . . . . . . . . . . . . . . . . . . . Robots Corrupted 9 | . . . 1 . . . . . . . 1 1 . . . . . . . 1 . . . . . . 5 Combat Hostiles 8 | . . . 1 . . . . . . . 1 1 . . . . . . . . . . . . . . 5 Parts Fried 18 | . . . 1 . . . 2 . . . 3 1 . . . 3 1 . . 1 . . . . . . 6 Impact Corruptions 1 | . . . . . . . . . . . . . . . . . . . . 1 . . . . . . . Robots Melted 4 | . . 1 . . . . . . . . . 1 1 . . . . . . . 1 . . . . . . Combat Hostiles 1 | . . . . . . . . . . . . . . . . . . . . . 1 . . . . . . Parts Melted 21 | . 4 6 3 . . . 1 . . . 1 . 2 . 1 . 1 . . . 1 . . . . . 1 Heat Transferred 8168 | 410 1776 814 1484 . . . . . . . 1088 198 333 . . 148 592 222 . 124 507 . . . . . 472 Parts Sabotaged 2 | . . . . . . . . . . . . . . . . . 2 . . . . . . . . . . Parts Stolen . | . . . . . . . . . . . . . . . . . . . . . . . . . . . . Parts Stripped . | . . . . . . . . . . . . . . . . . . . . . . . . . . . . Power Chain Reactions 5 | . . . 4 . . . . . . . . 1 . . . . . . . . . . . . . . . Alert | -11 -10 -10 -9 -9 -9 -8 -8 -8 -8 -8 -6 -6 -6 -6 -5 -5 -5 -5 -5 -5 -4 -4 -4 -4 -3 -3 -3 ------- Run | Yrd Mat Min Mat Min Exi Min Mat Sto Rec Scr Fac Low Low Zio Pro Fac Ext Cet Arc Hub Fac Upp Upp Zhi Pro Res Tes Maximum Alert Level 5 | . . . 1 . . . 1 . . . 2 . . . . 4 5 3 1 2 4 . . . . . 2 Low Security (%) 61 | 100 100 100 98 100 . 100 99 100 100 . 62 . . . . 25 . . 63 76 15 . . . . 100 66 Level 1 14 | . . . 1 . . . . . . . 26 . . . . 31 . . 37 15 31 . . . . . 16 Level 2 11 | . . . . . . . . . . . 11 . . . . 10 50 . . 7 31 . . . . . 17 Level 3 7 | . . . . . . . . . . . . . . . . 21 21 100 . . 8 . . . . . . Level 4 4 | . . . . . . . . . . . . . . . . 10 24 . . . 12 . . . . . . Level 5 . | . . . . . . . . . . . . . . . . . 2 . . . . . . . . . . High Security . | . . . . . . . . . . . . . . . . . . . . . . . . . . . . Max Security . | . . . . . . . . . . . . . . . . . . . . . . . . . . . . Peak Influence 1841 | 10 127 115 218 50 . . 231 184 160 . 581 . . . . 1318 1841 1056 364 589 1439 . . . . 30 624 Initial 1030 | . . 17 14 . . . . 28 31 . . . . . . . 645 1030 302 . 266 . . . . . . Average 279 | 1 44 40 82 3 . . 62 125 73 . 191 . . . . 519 888 875 142 132 535 . . . . 4 178 Influence Increases 16422 | 20 500 305 963 110 . . 977 629 387 . 1235 150 65 . 525 2359 2569 220 227 965 2202 75 110 15 110 162 1542 Destroy 0b10 Robot/C 9420 | . 300 220 580 80 . . 520 360 140 . 680 120 20 . 440 1220 1720 160 80 320 1140 60 100 . 100 20 1040 Destroy 0b10 Robot/NC 855 | 20 20 10 70 . . . 65 55 15 . 40 . . . . 110 40 10 45 60 215 5 . 15 . 15 45 Destroy Leader 1872 | . 78 30 178 20 . . 168 98 . . 206 30 . . 50 238 252 . . 98 248 10 10 . 10 12 136 Allied During Kill 172 | . . . . . . . 25 . . . . . . . 35 . 112 . . . . . . . . . . Successful Hack 506 | . 11 . 26 . . . 63 58 22 . 89 . . . . 76 45 . . 10 28 . . . . 66 12 Select Force Hacks 210 | . . . . . . . . . 210 . . . . . . . . . . . . . . . . . . Disable Machine 990 | . 15 30 45 . . . 30 45 . . 45 . . . . 195 . . 60 165 120 . . . . 30 210 Destroy Structure 1347 | . 1 . 64 10 . . 16 13 . . 55 . . . . 310 160 50 42 282 256 . . . . 4 84 Partial Spotted 60 | . . . . . . . . . . . 15 . . . . 15 . . . . 15 . . . . . 15 Lose Combat Pursuer 990 | . 75 15 . . . . 90 . . . 105 . 45 . . 195 240 . . 30 180 . . . . 15 . Influence Decreases 15919 | 20 454 312 1002 110 . . 909 617 467 . 654 731 65 . 525 1041 2047 1304 983 420 1309 1113 510 15 110 162 1039 Entered New Map 3184 | . . 29 25 . . . . 40 49 . . 216 . . . . 673 810 454 . 279 533 76 . . . . Time Decay 9517 | 20 434 283 686 110 . . 539 577 418 . 414 495 65 . 405 581 724 334 529 370 700 580 424 15 110 145 559 Lost Part 1626 | . 20 . 29 . . . 10 . . . 90 20 . . 100 160 370 160 . 40 270 . 10 . . 17 330 Lost Ally 440 | . . . 10 . . . 60 . . . . . . . 20 . 280 . . 10 60 . . . . . . Purge Threat 1152 | . . . 252 . . . 300 . . . 150 . . . . 300 . . . . . . . . . . 150 Squads Dispatched 113 | . 3 . 2 . . . 2 1 . . 23 . . . 1 23 18 . . 6 14 . . . . 4 16 Investigation 29 | . 1 . 1 . . . 1 1 . . 8 . . . . 8 3 . . . 4 . . . . 2 . Extermination 36 | . . . . . . . . . . . 10 . . . . 8 . . . 4 5 . . . . . 9 Reinforcement 28 | . 2 . 1 . . . 1 . . . 5 . . . . 3 5 . . 2 3 . . . . 2 4 Assault 20 | . . . . . . . . . . . . . . . 1 4 10 . . . 2 . . . . . 3 Garrison . | . . . . . . . . . . . . . . . . . . . . . . . . . . . . Intercept . | . . . . . . . . . . . . . . . . . . . . . . . . . . . . Searches Triggered . | . . . . . . . . . . . . . . . . . . . . . . . . . . . . Construction Impeded 7 | . . . . . . . . . . . 2 . . . . 1 4 . . . . . . . . . . Haulers Reinforced 5 | . . . . . . . . . . . 1 . . . . 1 . . . . 1 . . . . 1 1 Active Scanning Responses . | . . . . . . . . . . . . . . . . . . . . . . . . . . . . Cargo Convoy Interrupts . | . . . . . . . . . . . . . . . . . . . . . . . . . . . . Stealth | -11 -10 -10 -9 -9 -9 -8 -8 -8 -8 -8 -6 -6 -6 -6 -5 -5 -5 -5 -5 -5 -4 -4 -4 -4 -3 -3 -3 --------- Run | Yrd Mat Min Mat Min Exi Min Mat Sto Rec Scr Fac Low Low Zio Pro Fac Ext Cet Arc Hub Fac Upp Upp Zhi Pro Res Tes Distress Signals 30 | . 1 . 2 . . . 2 . . . 3 . . . . 3 5 2 . 2 7 . . . . 3 . Communications Jammed 110 | . . . . . . . . . . . . . . . . . . . . 7 95 . . . . 2 6 Distress Signals 108 | . . . . . . . . . . . . . . . . . . . . 6 95 . . . . 2 5 Times Spotted 669 | . 27 12 40 24 . . 31 24 6 . 47 6 2 . 21 88 119 10 7 26 88 3 7 . 5 11 65 Peak Tracking Total 18 | . 5 3 4 18 . . 5 4 3 . 5 4 4 . 7 7 10 5 1 4 6 1 3 . 5 3 4 Tactical Retreats 52 | . 3 1 . 4 . . 4 . . . 7 . 2 . . 9 10 . . 2 9 . . . . 1 . Traps | -11 -10 -10 -9 -9 -9 -8 -8 -8 -8 -8 -6 -6 -6 -6 -5 -5 -5 -5 -5 -5 -4 -4 -4 -4 -3 -3 -3 ------- Run | Yrd Mat Min Mat Min Exi Min Mat Sto Rec Scr Fac Low Low Zio Pro Fac Ext Cet Arc Hub Fac Upp Upp Zhi Pro Res Tes Traps Triggered 7 | . 2 . . . . . 1 1 . . . . . . . 1 . . . . . 1 . . . . 1 Indirectly . | . . . . . . . . . . . . . . . . . . . . . . . . . . . . Trap Hack Attempts . | . . . . . . . . . . . . . . . . . . . . . . . . . . . . Triggered . | . . . . . . . . . . . . . . . . . . . . . . . . . . . . Disarmed . | . . . . . . . . . . . . . . . . . . . . . . . . . . . . Reprogrammed . | . . . . . . . . . . . . . . . . . . . . . . . . . . . . Reused . | . . . . . . . . . . . . . . . . . . . . . . . . . . . . Traps Extracted . | . . . . . . . . . . . . . . . . . . . . . . . . . . . . Installed . | . . . . . . . . . . . . . . . . . . . . . . . . . . . . Triggered . | . . . . . . . . . . . . . . . . . . . . . . . . . . . . Machines | -11 -10 -10 -9 -9 -9 -8 -8 -8 -8 -8 -6 -6 -6 -6 -5 -5 -5 -5 -5 -5 -4 -4 -4 -4 -3 -3 -3 ---------- Run | Yrd Mat Min Mat Min Exi Min Mat Sto Rec Scr Fac Low Low Zio Pro Fac Ext Cet Arc Hub Fac Upp Upp Zhi Pro Res Tes Machines Disabled 72 | . 1 2 3 . . . 2 3 . . 3 1 . . 1 13 2 . 4 11 8 1 . . . 2 15 Max in Single Turn 4 | . 1 1 1 . . . 1 1 . . 1 1 . . 1 2 1 . 2 4 1 1 . . . 1 1 Garrison Access 5 | . . . . . . . 1 . . . 1 . . . . 1 . . . 1 . . . . . 1 . Network Hub 1 | . . . . . . . . . . . . . . . . . . . . 1 . . . . . . . Energy Cycler 1 | . . . . . . . . . . . . . . . . . 1 . . . . . . . . . . Machines Repaired . | . . . . . . . . . . . . . . . . . . . . . . . . . . . . Machines Dismantled . | . . . . . . . . . . . . . . . . . . . . . . . . . . . . Machines Sabotaged . | . . . . . . . . . . . . . . . . . . . . . . . . . . . . Overloaded Fab Kills . | . . . . . . . . . . . . . . . . . . . . . . . . . . . . Hacking | -11 -10 -10 -9 -9 -9 -8 -8 -8 -8 -8 -6 -6 -6 -6 -5 -5 -5 -5 -5 -5 -4 -4 -4 -4 -3 -3 -3 --------- Run | Yrd Mat Min Mat Min Exi Min Mat Sto Rec Scr Fac Low Low Zio Pro Fac Ext Cet Arc Hub Fac Upp Upp Zhi Pro Res Tes Machines Accessed 155 | . 8 . 12 . 1 . 10 19 13 6 24 . 1 . . 19 11 2 . 4 9 . . 4 . 3 9 Terminals 85 | . 6 . 9 . . . 6 15 6 . 11 . . . . 7 10 2 . 3 2 . . . . 1 7 Fabricators 6 | . . . . . . . . . . . 1 . . . . 3 . . . . 1 . . . . . 1 Repair Stations 14 | . . . 1 . . . 1 2 . . 3 . . . . 3 1 . . . 2 . . . . 1 . Recycling Units 30 | . 2 . 2 . . . 2 2 7 . 6 . . . . 5 . . . . 4 . . . . . . Scanalyzers 2 | . . . . . . . . . . . 2 . . . . . . . . . . . . . . . . Garrison Access 6 | . . . . . . . 1 . . . 1 . . . . 1 . . . 1 . . . . . 1 1 Total Hacks 510 | . 29 . 43 . 5 . 31 50 41 29 63 . 1 . . 58 27 7 . 9 46 . . 16 . 12 43 Successful 294 | . 15 . 26 . 5 . 18 32 21 29 35 . 1 . . 32 9 2 . 5 20 . . 16 . 8 20 Failed 215 | . 13 . 17 . . . 13 18 20 . 28 . . . . 26 18 5 . 4 26 . . . . 4 23 Catastrophic 35 | . . . 1 . . . . 2 1 . 8 . . . . 6 5 . . 1 4 . . . . 1 6 Database Lockouts 1 | . 1 . . . . . . . . . . . . . . . . . . . . . . . . . . Manual 263 | . 25 . 31 . . . 21 21 31 . 37 . . . . 30 14 . . 7 18 . . . . 6 22 Terminals 276 | . 22 . 29 . . . 22 33 19 . 29 . . . . 30 25 7 . 8 8 . . . . 6 38 Fabricators 16 | . . . . . . . . . . . 2 . . . . 7 . . . . 4 . . . . . 3 Repair Stations 70 | . . . 4 . . . 2 9 . . 15 . . . . 11 2 . . . 22 . . . . 5 . Recycling Units 85 | . 7 . 10 . . . 6 8 22 . 12 . . . . 8 . . . . 12 . . . . . . Scanalyzers 4 | . . . . . . . . . . . 4 . . . . . . . . . . . . . . . . Garrison Access 8 | . . . . . . . 1 . . . 1 . . . . 2 . . . 1 . . . . . 1 2 Terminal Hacks 113 | . 2 . 6 . 5 . 7 12 . 29 6 . 1 . . 6 4 2 . 1 1 . . 16 . 1 14 Record 41 | . . . . . 5 . . . . 28 . . . . . . . 2 . . . . . 5 . . 1 Part Schematic 6 | . 1 . . . . . . . . . 1 . . . . . . . . . . . . 4 . . . Robot Analysis 4 | . . . . . . . . . . . . . . . . . . . . . . . . 4 . . . Prototype ID Bank 3 | . . . . . . . . . . . . . . . . . . . . . . . . 3 . . . Open Door 12 | . . . . . . . . 6 . . . . 1 . . 1 4 . . . . . . . . . . Branch Access Points 3 | . . . . . . . . . . . 1 . . . . . . . . . 1 . . . . 1 . Terminal Index 1 | . . . . . . . . . . . . . . . . 1 . . . . . . . . . . . Repair Station Index 1 | . . . . . . . . 1 . . . . . . . . . . . . . . . . . . . Alert Level 4 | . . . 1 . . . . . . . 1 . . . . . . . . . . . . . . . 2 Unreport Threat 8 | . . . 2 . . . 2 . . . 1 . . . . 2 . . . . . . . . . . 1 Locate Traps 6 | . . . 1 . . . 1 2 . . 1 . . . . 1 . . . . . . . . . . . Dispatch Records 4 | . . . . . . . . 1 . . . . . . . . . . . 1 . . . . . . 2 Maintenance Status 1 | . . . . . . . . . . . . . . . . . . . . . . . . . . . 1 Transport Status 1 | . . . . . . . 1 . . . . . . . . . . . . . . . . . . . . Recall Investigation 1 | . . . . . . . . . . . . . . . . . . . . . . . . . . . 1 Recall Extermination 1 | . . . . . . . . . . . . . . . . . . . . . . . . . . . 1 Recall Reinforcements 1 | . . . . . . . . . . . . . . . . . . . . . . . . . . . 1 Recall Assault 1 | . . . . . . . . . . . . . . . . . . . . . . . . . . . 1 Hauler Manifests 5 | . 1 . 1 . . . 1 1 . . . . . . . 1 . . . . . . . . . . . Registered Components 1 | . . . . . . . . . . . . . . . . . . . . . . . . . . . 1 Zone Layout 6 | . . . 1 . . . 2 1 . . 1 . . . . . . . . . . . . . . . 1 Proto ID Catalog 1 | . . . . . . . . . . 1 . . . . . . . . . . . . . . . . . Protovariant Controls 1 | . . . . . . . . . . . . . . . . . . . . . . . . . . . 1 Fabricator Hacks 5 | . . . . . . . . . . . 1 . . . . 3 . . . . 1 . . . . . . Network Status 3 | . . . . . . . . . . . 1 . . . . 1 . . . . 1 . . . . . . Load Schematic 1 | . . . . . . . . . . . . . . . . 1 . . . . . . . . . . . Build 1 | . . . . . . . . . . . . . . . . 1 . . . . . . . . . . . Repair Station Hacks 45 | . . . 4 . . . 2 8 . . 10 . . . . 8 . . . . 9 . . . . 4 . Scan Component 23 | . . . 2 . . . 1 4 . . 5 . . . . 4 . . . . 5 . . . . 2 . Repair 22 | . . . 2 . . . 1 4 . . 5 . . . . 4 . . . . 4 . . . . 2 . Recycling Unit Hacks 16 | . 2 . 1 . . . 1 1 8 . . . . . . 1 . . . . 2 . . . . . . Report Inventory 11 | . . . 1 . . . 1 1 6 . . . . . . 1 . . . . 1 . . . . . . Retrieve Components 5 | . 2 . . . . . . . 2 . . . . . . . . . . . 1 . . . . . . Scanalyzer 2 | . . . . . . . . . . . 2 . . . . . . . . . . . . . . . . Insert Component 2 | . . . . . . . . . . . 2 . . . . . . . . . . . . . . . . Garrison Access Hacks 5 | . . . . . . . 1 . . . 1 . . . . 1 . . . 1 . . . . . 1 . Seal Access 5 | . . . . . . . 1 . . . 1 . . . . 1 . . . 1 . . . . . 1 . Unauthorized Hacks 106 | . 11 . 15 . . . 7 11 13 . 15 . . . . 13 5 . . 3 7 . . . . 2 4 Terminals 63 | . 7 . 10 . . . 4 7 5 . 9 . . . . 6 4 . . 3 2 . . . . 2 4 Track 1 | . . . . . . . . . . . . . . . . . . . . . . . . . . . 1 Assimilate 3 | . . . 1 . . . . . . . 1 . . . . . . . . 1 . . . . . . . Botnet 17 | . 2 . 2 . . . . 2 . . 2 . . . . 1 2 . . 2 1 . . . . 1 2 Disrupt 1 | . . . . . . . . . . . 1 . . . . . . . . . . . . . . . . Operators 1 | . . . 1 . . . . . . . . . . . . . . . . . . . . . . . . Skim 40 | . 5 . 6 . . . 4 5 5 . 5 . . . . 5 2 . . . 1 . . . . 1 1 Fabricators 5 | . . . . . . . . . . . 1 . . . . 1 . . . . 3 . . . . . . Report 1 | . . . . . . . . . . . . . . . . . . . . . 1 . . . . . . Liberate 1 | . . . . . . . . . . . . . . . . . . . . . 1 . . . . . . Haulers 3 | . . . . . . . . . . . 1 . . . . 1 . . . . 1 . . . . . . Repair Stations 3 | . . . . . . . . . . . . . . . . 2 1 . . . . . . . . . . Patch 3 | . . . . . . . . . . . . . . . . 2 1 . . . . . . . . . . Recycling Units 35 | . 4 . 5 . . . 3 4 8 . 5 . . . . 4 . . . . 2 . . . . . . Reject 8 | . 1 . 2 . . . 2 2 1 . . . . . . . . . . . . . . . . . . Recyclers 2 | . 1 . 1 . . . . . . . . . . . . . . . . . . . . . . . . Mask 7 | . 2 . 2 . . . 1 2 . . . . . . . . . . . . . . . . . . . Tunnel 7 | . . . . . . . . . 7 . . . . . . . . . . . . . . . . . . Fedlink 11 | . . . . . . . . . . . 5 . . . . 4 . . . . 2 . . . . . . Scanalyzers . | . . . . . . . . . . . . . . . . . . . . . . . . . . . . Garrison Access . | . . . . . . . . . . . . . . . . . . . . . . . . . . . . Data Cores Recovered . | . . . . . . . . . . . . . . . . . . . . . . . . . . . . Used . | . . . . . . . . . . . . . . . . . . . . . . . . . . . . Hacking Detections 116 | . 6 . 11 . . . 9 15 9 . 18 . . . . 16 10 2 . 3 7 . . . . 2 8 Full Trace Events 11 | . . . 1 . . . . . 1 . 3 . . . . 2 2 . . . 2 . . . . . . Feedback Events . | . . . . . . . . . . . . . . . . . . . . . . . . . . . . Feedback Blocked . | . . . . . . . . . . . . . . . . . . . . . . . . . . . . Robot Schematics Acquired 5 | . . . . . . . . . . . . . . 3 . . . . . . . . . . . . 2 Robots Built . | . . . . . . . . . . . . . . . . . . . . . . . . . . . . Authchips . | . . . . . . . . . . . . . . . . . . . . . . . . . . . . Time . | . . . . . . . . . . . . . . . . . . . . . . . . . . . . Total Robot Build Rating . | . . . . . . . . . . . . . . . . . . . . . . . . . . . . Part Schematics Acquired 37 | . 1 . . . . . . . . . 1 . . 16 . . . . . . . . . 4 . . 15 Parts Built . | . . . . . . . . . . . . . . . . . . . . . . . . . . . . Authchips . | . . . . . . . . . . . . . . . . . . . . . . . . . . . . Time 95 | . . . . . . . . . . . . . . . . 95 . . . . . . . . . . . Total Part Build Rating . | . . . . . . . . . . . . . . . . . . . . . . . . . . . . Parts Repaired 22 | . . . 2 . . . 1 4 . . 5 . . . . 4 . . . . 4 . . . . 2 . Time 1102 | . . . 102 . . . 44 162 . . 202 . . . . 160 . . . . 324 . . . . 108 . Parts Recycled . | . . . . . . . . . . . . . . . . . . . . . . . . . . . . Recycled Matter . | . . . . . . . . . . . . . . . . . . . . . . . . . . . . Retrieved Matter . | . . . . . . . . . . . . . . . . . . . . . . . . . . . . Retrieved Components 27 | . 12 . . . . . . . 5 . . . . . . . . . . . 10 . . . . . . Parts Scanalyzed 1 | . . . . . . . . . . . 1 . . . . . . . . . . . . . . . . Part Schematics Acquired . | . . . . . . . . . . . . . . . . . . . . . . . . . . . . Parts Damaged 1 | . . . . . . . . . . . 1 . . . . . . . . . . . . . . . . Bothacking | -11 -10 -10 -9 -9 -9 -8 -8 -8 -8 -8 -6 -6 -6 -6 -5 -5 -5 -5 -5 -5 -4 -4 -4 -4 -3 -3 -3 ------------ Run | Yrd Mat Min Mat Min Exi Min Mat Sto Rec Scr Fac Low Low Zio Pro Fac Ext Cet Arc Hub Fac Upp Upp Zhi Pro Res Tes Used RIF Installer . | . . . . . . . . . . . . . . . . . . . . . . . . . . . . Robots Hacked . | . . . . . . . . . . . . . . . . . . . . . . . . . . . . Non-combat . | . . . . . . . . . . . . . . . . . . . . . . . . . . . . Combat . | . . . . . . . . . . . . . . . . . . . . . . . . . . . . Robot Hacks Applied . | . . . . . . . . . . . . . . . . . . . . . . . . . . . . Relay Couplers Released . | . . . . . . . . . . . . . . . . . . . . . . . . . . . . Fabnet Peak Effective % . | . . . . . . . . . . . . . . . . . . . . . . . . . . . . Robots Rewired 15 | . . . . . . . . . . . . . . . 2 . 13 . . . . . . . . . . Allies Hacked . | . . . . . . . . . . . . . . . . . . . . . . . . . . . . Hacks Repelled . | . . . . . . . . . . . . . . . . . . . . . . . . . . . . Allies | -11 -10 -10 -9 -9 -9 -8 -8 -8 -8 -8 -6 -6 -6 -6 -5 -5 -5 -5 -5 -5 -4 -4 -4 -4 -3 -3 -3 -------- Run | Yrd Mat Min Mat Min Exi Min Mat Sto Rec Scr Fac Low Low Zio Pro Fac Ext Cet Arc Hub Fac Upp Upp Zhi Pro Res Tes Total Allies 32 | . . . 1 3 . . . . . . . . . 4 2 . 18 . . 1 3 . . . . . . Largest Group 9 | . . . 1 3 3 3 3 . . . . . . 4 4 . 9 . . 1 3 . . . . . . Highest-Rated Group 246 | . . . 10 40 40 40 40 . . . . . . 101 101 . 246 . . 10 141 . . . . . . Highest-Rated Ally 47 | . . . 10 16 16 16 16 . . . . . . 31 31 . 39 . . 10 47 . . . . . . Total Orders 19 | . . . 9 . . . . . . . . . . . . . 4 . . 6 . . . . . . . STAY 10 | . . . 4 . . . . . . . . . . . . . 2 . . 4 . . . . . . . FOLLOW 9 | . . . 5 . . . . . . . . . . . . . 2 . . 2 . . . . . . . Ally Attacks 142 | . . . . . . . 44 . . . . . . . 22 . 68 . . . 8 . . . . . . Total Damage 2651 | . . . . . . . 550 . . . . . . . 596 . 1256 . . . 249 . . . . . . Kills 20 | . . . . . . . 5 . . . . . . . 4 . 10 . . . 1 . . . . . . Allies Corrupted 1 | . . . . . . . . . . . . . . . . . 1 . . . . . . . . . . Allies Melted 1 | . . . . . . . . . . . . . 1 . . . . . . . . . . . . . . Intel | -11 -10 -10 -9 -9 -9 -8 -8 -8 -8 -8 -6 -6 -6 -6 -5 -5 -5 -5 -5 -5 -4 -4 -4 -4 -3 -3 -3 ------- Run | Yrd Mat Min Mat Min Exi Min Mat Sto Rec Scr Fac Low Low Zio Pro Fac Ext Cet Arc Hub Fac Upp Upp Zhi Pro Res Tes Active Infowar (turns) 36835 | 4 244 . . . . . . 191 . . 5180 3163 1895 1924 1974 3208 1624 . 1409 2308 2981 1796 1878 308 1651 926 4171 Optics 12389 | . . . . . . . . . . . . . . . . . . . . . 1868 1796 1878 308 1651 926 3962 Sensors 32803 | . . . . . . . . 191 . . 5180 3163 1895 1924 1974 2589 1624 . 1409 2168 1079 1787 1859 308 1466 926 3261 Terrain 6219 | . . . . . . . . . . . . . . . . . . . . . . 1454 1877 308 1651 922 7 Structural 1209 | . . . . . . . . . . . . . . . . . . . . 585 42 . 1 . . . 581 Seismic 706 | 4 244 . . . . . . . . . . . . . . 458 . . . . . . . . . . . T.N.C. 2 | . . . . . . . . . . . . . . . . . . . . . . . . . . 2 . Cloaking 65 | . . . . . . . . . . . . . . . . 65 . . . . . . . . . . . Jamming 14679 | . . . . . . . . . . . . . . . . 586 236 . . 166 2965 1796 1878 308 1651 922 4171 Robot Analysis Total 4 | . . . . . . . . . . . . . . . . . . . . . . . . 4 . . . Derelict Logs Recovered 13 | . . 1 . 2 . . . . . . . 1 2 2 2 . . . . . . 3 . . . . . Drone Launches . | . . . . . . . . . . . . . . . . . . . . . . . . . . . . Drone Recoveries . | . . . . . . . . . . . . . . . . . . . . . . . . . . . . Exploration | -11 -10 -10 -9 -9 -9 -8 -8 -8 -8 -8 -6 -6 -6 -6 -5 -5 -5 -5 -5 -5 -4 -4 -4 -4 -3 -3 -3 ------------- Run | Yrd Mat Min Mat Min Exi Min Mat Sto Rec Scr Fac Low Low Zio Pro Fac Ext Cet Arc Hub Fac Upp Upp Zhi Pro Res Tes Turns Passed 59956 | 72 1744 751 2936 1448 564 129 2305 1776 1222 2617 6223 4326 1895 1924 2396 5013 3469 750 2000 2685 2982 1796 1878 308 1651 926 4170 Spaces Moved 23757 | 27 1107 378 1426 756 353 72 1155 841 602 1463 2185 919 627 786 954 1861 1079 228 226 903 839 941 983 158 969 427 1492 Core 98 | . . . . . . . . . . . . 98 . . . . . . . . . . . . . . . Treads 18239 | . 205 378 1426 756 353 72 1155 841 602 1463 1110 755 627 786 233 424 27 88 226 903 839 941 983 158 969 427 1492 Legs 1202 | 27 902 . . . . . . . . . . . . . . . 133 140 . . . . . . . . . Wheels 4218 | . . . . . . . . . . . 1075 66 . . 721 1437 919 . . . . . . . . . . Hover . | . . . . . . . . . . . . . . . . . . . . . . . . . . . . Flight . | . . . . . . . . . . . . . . . . . . . . . . . . . . . . Fastest Speed 120 | 120 120 160 160 160 160 160 160 160 160 160 210 225 242 164 164 123 130 160 160 160 160 160 160 160 160 160 160 Average Speed 194 | 120 127 160 162 160 160 160 160 160 160 178 235 451 282 241 230 203 207 220 160 162 160 160 160 160 160 166 179 Slowest Speed 2200 | 120 160 160 240 160 160 160 160 160 160 240 320 2200 325 245 244 320 400 470 160 240 160 160 160 160 160 242 245 Overloaded Moves . | . . . . . . . . . . . . . . . . . . . . . . . . . . . . Propulsion Burnouts . | . . . . . . . . . . . . . . . . . . . . . . . . . . . . Robots Hopped . | . . . . . . . . . . . . . . . . . . . . . . . . . . . . Potential Cave-ins 36 | . . . . . . . . . . . 5 . 2 . . 3 7 . . . . . . . . . 19 Cave-ins Triggered 6 | . . . . . . . . . . . 1 . . . . . . . . . . . . . . . 5 Exploration Rate (%) 71 | 3 96 92 93 98 84 24 88 87 96 91 60 89 70 79 90 39 63 68 73 52 17 92 91 60 91 11 93 Regions Visited 27 Branch Regions 20 Pre-discovered Areas 27 | . 2 1 1 2 1 . . 1 9 . 2 . . 3 1 . . . . . . 1 . 3 . . . Known Exits Taken 23 | . . 1 1 . . 1 1 1 1 1 1 1 1 1 1 1 1 1 1 1 1 1 1 1 1 1 . Unknown Exits Taken 4 | 1 1 . . 1 1 . . . . . . . . . . . . . . . . . . . . . . Scrap Searched 38 | . . 2 . 2 . . . . . 9 . 9 4 4 2 . . . . . . 3 2 . 1 . . Spaces Dug 162 | . 1 . 21 . . . . . . . 37 . 3 . . 34 12 13 . 5 11 3 2 . . . 20 Terrain Destroyed 1132 | . 1 . 63 13 . . 20 16 . . 78 6 17 . 13 164 166 50 31 242 150 9 15 . 8 2 68 Melee . | . . . . . . . . . . . . . . . . . . . . . . . . . . . . Projectile 650 | . 1 . . . . . . . . . 75 3 17 . 1 67 110 50 31 87 122 8 14 . 8 2 54 AOE 444 | . . . 63 13 . . 20 16 . . 3 3 . . 12 87 50 . . 155 22 . . . . . . Terrain Rammed . | . . . . . . . . . . . . . . . . . . . . . . . . . . . . Walls Destroyed . | . . . . . . . . . . . . . . . . . . . . . . . . . . . . Machines Disabled . | . . . . . . . . . . . . . . . . . . . . . . . . . . . . Actions | -11 -10 -10 -9 -9 -9 -8 -8 -8 -8 -8 -6 -6 -6 -6 -5 -5 -5 -5 -5 -5 -4 -4 -4 -4 -3 -3 -3 --------- Run | Yrd Mat Min Mat Min Exi Min Mat Sto Rec Scr Fac Low Low Zio Pro Fac Ext Cet Arc Hub Fac Upp Upp Zhi Pro Res Tes Total 34209 | 42 1323 476 1906 907 352 86 1484 1203 831 1476 2998 1025 718 809 1082 2676 1819 405 1801 1965 1951 1183 1213 203 1041 619 2615 Wait 7109 | 2 120 71 308 97 . 15 219 272 192 . 512 47 51 8 24 424 218 53 1515 928 753 213 175 1 48 116 727 Move 23728 | 26 1106 377 1425 755 352 71 1154 840 601 1462 2184 918 626 785 953 1860 1078 227 225 902 838 940 982 157 968 426 1490 Hop . | . . . . . . . . . . . . . . . . . . . . . . . . . . . . Pick Up 246 | 1 9 . 15 4 . . 8 2 1 8 15 6 4 2 3 30 24 18 9 6 29 1 6 4 5 15 21 Fast Attach 228 | 1 7 1 8 . . . 5 8 . . 14 6 5 5 11 33 30 12 4 3 15 . 6 11 1 16 26 Attach 145 | . 2 . 3 . . . 3 . . . 8 5 . . 5 12 22 20 3 1 29 . 2 2 . 7 21 Detach 29 | . 1 . 1 . . . 1 . . . . . . . . 3 3 8 3 . 1 . . . . . 8 Swap 419 | . 7 . 23 3 . . 13 7 7 3 46 10 4 1 2 68 52 3 6 46 41 3 5 . 2 1 66 Drop 297 | . 12 1 24 3 . . 15 8 2 3 16 . 6 7 5 46 21 8 12 6 11 . 9 15 4 25 38 Fire 1770 | 12 59 26 99 45 . . 66 65 28 . 202 33 22 1 32 198 224 56 24 72 200 26 28 13 12 12 215 Melee . | . . . . . . . . . . . . . . . . . . . . . . . . . . . . Ram 3 | . . . . . . . . . . . 1 . . . . . 2 . . . . . . . . . . Kick . | . . . . . . . . . . . . . . . . . . . . . . . . . . . . Crush 38 | . . . . . . . . 1 . . . . . . . . 1 . . 1 34 . . . . 1 . Escape Stasis 5 | . . . . . . . . . . . . . . . . 2 . . . . . . . . . . 3 Rewire 191 | . . . . . . . . . . . . . . . 47 . 144 . . . . . . . . . . Trap . | . . . . . . . . . . . . . . . . . . . . . . . . . . . . Miscellaneous 1 | . . . . . . . . . . . . . . . . . . . . . . . . . 1 . . Route ------- -11/Scrapyard -10/Materials (discovered 4 exits: *Mat x2 / [*Min x2]) -10/Mines (discovered 3 exits: *Mat x2 / *Sub) -9/Materials (discovered 5 exits: *Mat x3 / *Min x2) -9/Mines (discovered 3 exits: *Mat x2 / *Exi) -9/Exiles -8/Mines -8/Materials (discovered 5 exits: *Fac x3 / *Sto x2) -8/Storage (discovered 2 exits: *Fac / *Rec) -8/Recycling (discovered 2 exits: *Fac / *Scr) -8/Scraptown (discovered 2 exits: *Fac x2) -6/Factory (discovered 6 exits: *Fac x4 / *Low x2) -6/Lower Caves -6/Lower Caves (discovered 2 exits: *Fac / *Zio) -6/Zion -5/Proximity Caves -5/Factory (discovered 5 exits: *Fac x2 / Upp / *Ext x2) -5/Extension (discovered 3 exits: *Fac x2 / *Cet) -5/Cetus (discovered 2 exits: *Fac / *Arc) -5/Archives -5/Hub_04(d) -4/Factory (discovered 2 exits: *Upp x2) -4/Upper Caves -4/Upper Caves (discovered 2 exits: *Res / *Zhi) -4/Zhirov -3/Proximity Caves -3/Research (discovered 4 exits: Res / Arm / *Tes x2) -3/Testing (discovered 1 exit: *Res) History --------- Turn | Location | Event 16 | -11/Scrapyard | Discovered new exit (range 3) 73 | -11/Scrapyard | Entered Materials 305 | -10/Materials | Build established: Mutant 423 | -10/Materials | Core integrity fell below 50% 475 | -10/Materials | Discovered new exit (range 11) 608 | -10/Materials | Discovered new exit (range 4) 674 | -10/Materials | Central database locked down 691 | -10/Materials | Discovered new exit (range 7) 723 | -10/Materials | Discovered new exit (range 9) 956 | -10/Materials | Learned location of Storage (-8) 1053 | -10/Materials | Learned Storage terminal intel 1085 | -10/Materials | Learned location of 2 exits from Mines 1107 | -10/Materials | Learned location of 1 exit from Recycling 1119 | -10/Materials | Learned 4 Recycling zone layouts 1206 | -10/Materials | Learned location of 1 exit from Recycling 1817 | -10/Materials | Entered Mines 1818 | -10/Mines | Identified exit to Subcaves 1818 | -10/Mines | Identified exit to Materials 1851 | -10/Mines | A weapon hastily lodged in a ceiling crevice suddenly fell to the ground 1853 | -10/Mines | Discovered exit to Materials (range 8) 2119 | -10/Mines | Found a hidden stash of uninstalled traps 2568 | -10/Mines | Entered Materials 2568 | -9/Materials | Evolved 2 slots: Utility x2 2569 | -9/Materials | Identified exit to Mines 2669 | -9/Materials | Destroyed 7 combat bots 4009 | -9/Materials | Learned Storage security intel 4063 | -9/Materials | Learned location of Zion (-6) 4109 | -9/Materials | Learned Storage terminal intel 4145 | -9/Materials | Learned Storage stockpile data 4172 | -9/Materials | Identified exit to Materials 4191 | -9/Materials | Loaded intel: 17 interactive machine locations 4202 | -9/Materials | Learned Storage terminal intel 4224 | -9/Materials | Learned location of 1 exit from Recycling 4300 | -9/Materials | Loaded intel: 10 trap records 4355 | -9/Materials | Learned location of 1 exit from Recycling 4681 | -9/Materials | Build established: Scavenger-Mutant 4713 | -9/Materials | Repaired Imp. Assault Rifle 4765 | -9/Materials | Repaired Imp. Assault Rifle 5504 | -9/Materials | Entered Mines 5602 | -9/Mines | Discovered exit to Materials (range 9) 5790 | -9/Mines | Received a Rocket Launcher from a helpful Derelict 6005 | -9/Mines | Assembled infested the area 6084 | -9/Mines | Destroyed 7 combat bots 6296 | -9/Mines | Discovered exit to Materials (range 5) 6378 | -9/Mines | Learned location of 2 exits from Materials 6394 | -9/Mines | Found a damaged Exp. Sensor Array with a note attached 6399 | -9/Mines | Found Prototype Device 6705 | -9/Mines | Build established: Mutant 6898 | -9/Mines | Assisted by bots powering up and referring to "LRC-V3" 6946 | -9/Mines | Deemed a non-threat by the Exiles lab entrance 6946 | -9/Mines | Discovered new exit (range 5) 6952 | -9/Mines | Entered Exiles 6952 | -9/Exiles | Accompanied by 3 allies 6992 | -9/Exiles | Met 8R-AWN 7020 | -9/Exiles | Met EX-HEX 7077 | -9/Exiles | Met EX-DEC 7171 | -9/Exiles | Visited The Gauntlet 7327 | -9/Exiles | Met EX-BIN 7493 | -9/Exiles | Discovered new exit (range 14) 7516 | -9/Exiles | Entered Mines 7516 | -8/Mines | Accompanied by 3 allies 7632 | -8/Mines | Discovered exit to Materials (range 8) 7645 | -8/Mines | Entered Materials 7645 | -8/Materials | Accompanied by 3 allies 7645 | -8/Materials | Evolved 2 slots: Propulsion x1, Weapon x1 7646 | -8/Materials | Identified exit to Storage 7647 | -8/Materials | Identified exit to Factory 7936 | -8/Materials | Build established: Gunner 8969 | -8/Materials | Discovered exit to Storage (range 3) 9168 | -8/Materials | Discovered exit to Factory (range 11) 9857 | -8/Materials | Repaired Imp. Deuterium Engine 9950 | -8/Materials | Entered Storage 9953 | -8/Storage | Loaded intel: 18 terminal locations 10397 | -8/Storage | Discovered exit to Factory (range 13) 11017 | -8/Storage | Learned Factory emergency access door positions 11055 | -8/Storage | Learned Factory garrison access intel 11083 | -8/Storage | Learned Factory trap positions 11101 | -8/Storage | Identified exit to Recycling 11111 | -8/Storage | Learned location of 1 exit from Extension 11112 | -8/Storage | Learned Factory non-interactive machine intel 11119 | -8/Storage | Learned Factory security intel 11134 | -8/Storage | Learned location of Extension (-5) 11335 | -8/Storage | Repaired Med. Armor Plating 11404 | -8/Storage | Repaired Enh. Autogun 11463 | -8/Storage | Repaired Lgt. Treads 11509 | -8/Storage | Repaired Imp. Deuterium Engine 11723 | -8/Storage | Used back door to open Recycling access 11726 | -8/Storage | Entered Recycling 11727 | -8/Recycling | Identified exit to Scraptown 11727 | -8/Recycling | Identified exit to Factory 12052 | -8/Recycling | Scanned before Scraplab entrance 12782 | -8/Recycling | Entered Scraplab 12815 | -8/Recycling | Learned Storage security intel 12847 | -8/Recycling | Learned Storage trap positions 12871 | -8/Recycling | Learned Factory stockpile data 12903 | -8/Recycling | Learned 2 Lower Caves zone layouts 12948 | -8/Recycling | Entered Scraptown 13342 | -8/Scraptown | Discovered exit to Factory (range 11) 13393 | -8/Scraptown | Visited Cyclists 13428 | -8/Scraptown | Visited Bundlers 13504 | -8/Scraptown | Visited The Evicted 13537 | -8/Scraptown | Visited Symbiants 13587 | -8/Scraptown | Visited Cave Peace 13628 | -8/Scraptown | Visited IN-MT5's Study 13712 | -8/Scraptown | Visited Shadow of the Wyrm 13991 | -8/Scraptown | Visited UFD Registry 14059 | -8/Scraptown | Registered with UFD as "Gammabay" 14147 | -8/Scraptown | Entered Cyclist Reading Room 14284 | -8/Scraptown | Visited Research Penetration Think Tank 14329 | -8/Scraptown | Visited Junk Repository 14379 | -8/Scraptown | Visited Scrapoid Research Area 14423 | -8/Scraptown | Visited Abandonware Association 14443 | -8/Scraptown | Learned abandonware demo "HACKBUD.EXE" 14443 | -8/Scraptown | Learned abandonware demo "POISON.EXE" 14470 | -8/Scraptown | Visited Derelict Rescue Squad 14507 | -8/Scraptown | Visited Scrapoid Pod Storage 14527 | -8/Scraptown | Visited Science Guys 14577 | -8/Scraptown | Visited Chapter 10 14628 | -8/Scraptown | Visited Supply Room 14660 | -8/Scraptown | Visited A0-MCA Data Center 14670 | -8/Scraptown | Given an A rating by A0-MCA 14769 | -8/Scraptown | Found DRS Beacon 14912 | -8/Scraptown | Found A0-MCA's Component Scanner 15338 | -8/Scraptown | Met Optimus 15338 | -8/Scraptown | Accepted into 0bPrime 15558 | -8/Scraptown | Discovered exit to Factory (range 3) 15565 | -8/Scraptown | Entered Factory 15565 | -6/Factory | Evolved 4 slots: Power x1, Propulsion x1, Utility x2 15566 | -6/Factory | Loaded intel: 87 trap records 15570 | -6/Factory | Loaded intel: 213 non-interactive machine locations 15571 | -6/Factory | Loaded intel: 3 garrison access locations 15612 | -6/Factory | Identified Exp. Sensor Array 15981 | -6/Factory | Discovered new exit (range 14) 16212 | -6/Factory | Discovered new exit (range 15) 16245 | -6/Factory | Identified exit to Lower Caves 16559 | -6/Factory | Spotted B-75 Beast 16593 | -6/Factory | Destroyed B-75 Beast 17321 | -6/Factory | Build established: Scavenger-Gunner 17602 | -6/Factory | Repaired Med. Treads 17642 | -6/Factory | Repaired Hrd. Medium Armor Plating 17669 | -6/Factory | Repaired Lgt. Treads 17696 | -6/Factory | Repaired Lgt. Treads 18374 | -6/Factory | Discovered new exit (range 8) 19374 | -6/Factory | Repaired Broken Exp. Sensor Array 19469 | -6/Factory | Learned location of Proximity Caves (-5) 19515 | -6/Factory | Identified exit to Factory 19553 | -6/Factory | Learned location of 1 exit from Upper Caves 19595 | -6/Factory | Learned 4 Upper Caves zone layouts 19601 | -6/Factory | Loaded intel: 6 fabricator locations 19814 | -6/Factory | Loaded intel: 8 recycling unit locations 20061 | -6/Factory | Learned location of Protoforge (-2) 21162 | -6/Factory | Crushed by falling debris 21344 | -6/Factory | Lost 5 parts (3p2n) 21571 | -6/Factory | Build established: Gunner 21788 | -6/Factory | Entered Lower Caves 21981 | -6/Lower Caves | Core integrity fell below 50% 22377 | -6/Lower Caves | Learned Factory trap positions 23559 | -6/Lower Caves | Spotted B-75 Beast 23638 | -6/Lower Caves | Destroyed B-75 Beast 23657 | -6/Lower Caves | Lost 5 parts (3n1u1w) 24510 | -6/Lower Caves | Discovered new exit (range 16) 24809 | -6/Lower Caves | Identified exit to Lower Caves 26114 | -6/Lower Caves | Entered another Lower Caves area 26479 | -6/Lower Caves | Found Alien Artifact 26479 | -6/Lower Caves | Identified Core Expander 26479 | -6/Lower Caves | Installed Core Expander, added new Propulsion slot 27361 | -6/Lower Caves | Identified exit to Zion 27475 | -6/Lower Caves | Build established: Scavenger-Gunner 27612 | -6/Lower Caves | Encountered a Warlord checkpoint 27657 | -6/Lower Caves | Learned Factory security intel 28009 | -6/Lower Caves | Entered Zion 28071 | -6/Zion | System corruption cleaned by Quarantine Array 28239 | -6/Zion | Given A8's code to call for help 28285 | -6/Zion | Discovered new exit (range 14) 29021 | -6/Zion | Learned 4 Factory zone layouts 29087 | -6/Zion | Gained Derelict followers 29522 | -6/Zion | Acquired unknown access codes intercepted by a Zionite 29581 | -6/Zion | Learned location of Warlord (-5) 29732 | -6/Zion | Given the Hacking Drone Bay 29733 | -6/Zion | Found Prototype Device 29922 | -6/Zion | Identified exit to Proximity Caves 29933 | -6/Zion | Entered Proximity Caves 29933 | -5/Proximity Caves | Accompanied by 4 allies 30308 | -5/Proximity Caves | Attracted the attention of an 0b10 outpost 30313 | -5/Proximity Caves | Found DCF Scrap (13 items) 30365 | -5/Proximity Caves | Lost 4 allies 30479 | -5/Proximity Caves | Lost 8 parts (3n3u2w) 31037 | -5/Proximity Caves | Build established: Scavenger-Skirmisher 32329 | -5/Proximity Caves | Entered Factory 32329 | -5/Factory | Evolved 2 slots: Weapon x2 32330 | -5/Factory | Identified exit to Factory 32330 | -5/Factory | Identified exit to Upper Caves 32330 | -5/Factory | Identified exit to Extension 32332 | -5/Factory | Loaded intel: 79 trap records 32814 | -5/Factory | Identified Hacking Drone Bay 32870 | -5/Factory | Loaded intel: 8 recycling unit locations 33503 | -5/Factory | Lost 4 parts (1p1n2w) 33565 | -5/Factory | Build established: Scavenger-Gunner 34384 | -5/Factory | Build established: Scavenger-Tank 34571 | -5/Factory | System corruption reached 10% 34693 | -5/Factory | Build established: Scavenger-Skirmisher 34737 | -5/Factory | Repaired KE Penetrator 34743 | -5/Factory | Discovered exit to Factory (range 4) 35329 | -5/Factory | First assault squad dispatched 35698 | -5/Factory | Repaired Imp. Medium Armor Plating 36472 | -5/Factory | Build established: Scavenger-Tank 36538 | -5/Factory | Learned Extension terminal intel 36541 | -5/Factory | Repaired Gauss Rifle 36597 | -5/Factory | Repaired Gauss Rifle 36614 | -5/Factory | Learned Factory trap positions 36678 | -5/Factory | Learned Armory emergency access door positions 36734 | -5/Factory | Learned location of 1 exit from Testing 36775 | -5/Factory | Build established: Scavenger-Skirmisher 36778 | -5/Factory | Learned 2 Upper Caves zone layouts 36814 | -5/Factory | Learned Research garrison access intel 36842 | -5/Factory | Learned Armory security intel 36880 | -5/Factory | Learned location of 1 exit from Armory 36929 | -5/Factory | Learned 4 Factory zone layouts 36988 | -5/Factory | Learned 4 Extension zone layouts 37342 | -5/Factory | Entered Extension 37345 | -5/Extension | Loaded intel: 13 terminal locations 37599 | -5/Extension | Lost 3 parts (3n) 37650 | -5/Extension | Build established: Scavenger-Tank 37942 | -5/Extension | First assault squad dispatched 38497 | -5/Extension | Lost 3 parts (2u1w) 38698 | -5/Extension | Rescued a captive Derelict 38698 | -5/Extension | Rescued a captive Derelict 38979 | -5/Extension | Rescued a captive Derelict 39067 | -5/Extension | Disrupted transfer network 39311 | -5/Extension | Core integrity fell below 50% 39326 | -5/Extension | Lost 6 allies 39584 | -5/Extension | Lost 3 allies 39666 | -5/Extension | Lost 9 parts (4n5w) 39792 | -5/Extension | Rescued a captive Derelict 39908 | -5/Extension | Destroyed 8 combat bots 40029 | -5/Extension | Rescued a captive Derelict 40230 | -5/Extension | Destroyed 7 combat bots 40235 | -5/Extension | Lost 9 parts (3n2u4w) 40582 | -5/Extension | Energy Cycler disabled 40586 | -5/Extension | Rescued a captive Derelict 40728 | -5/Extension | Lost 3 parts (2n1w) 40748 | -5/Extension | Destroyed 10 combat bots 40755 | -5/Extension | Discovered new exit (range 6) 40809 | -5/Extension | Identified exit to Cetus 40811 | -5/Extension | Entered Cetus 40852 | -5/Cetus | Spotted Cetus Guard 40852 | -5/Cetus | Spotted Cetus Guard 40856 | -5/Cetus | Spotted Cetus Guard 40862 | -5/Cetus | Destroyed Cetus Guard 40864 | -5/Cetus | Destroyed Cetus Guard 40881 | -5/Cetus | Build established: Scavenger-Gunner 40883 | -5/Cetus | Spotted Cetus Guard 40919 | -5/Cetus | Destroyed Cetus Guard 40936 | -5/Cetus | Destroyed Cetus Guard 40957 | -5/Cetus | Lost 11 parts (1p4n1u5w) 41200 | -5/Cetus | Discovered new exit (range 16) 41295 | -5/Cetus | Spotted Cetus Guard 41296 | -5/Cetus | Spotted Cetus Guard 41301 | -5/Cetus | Spotted Cetus Guard 41305 | -5/Cetus | Spotted Cetus Guard 41307 | -5/Cetus | Build established: Scavenger-Mutant 41322 | -5/Cetus | Destroyed Cetus Guard 41327 | -5/Cetus | Core integrity fell below 20% 41335 | -5/Cetus | Destroyed Cetus Guard 41339 | -5/Cetus | Destroyed Cetus Guard 41360 | -5/Cetus | Destroyed Cetus Guard 41365 | -5/Cetus | Lost 5 parts (2p2n1w) 41405 | -5/Cetus | Discovered exit to Factory (range 16) 41467 | -5/Cetus | Met Revision 17 41556 | -5/Cetus | Identified exit to Archives 41561 | -5/Cetus | Security sweep announced 41561 | -5/Cetus | Entered Archives 41623 | -5/Archives | Build established: Scavenger-Tank 41774 | -5/Archives | Discovered new exit (range 15) 42272 | -5/Archives | Identified exit to Hub_04(d) 43561 | -5/Archives | Entered Hub_04(d) 44549 | -5/Hub_04(d) | Discovered exit to Factory (range 5) 46033 | -5/Hub_04(d) | Network Hub disabled 46160 | -5/Hub_04(d) | Spotted Lightning 46160 | -5/Hub_04(d) | Spotted Lightning 46162 | -5/Hub_04(d) | Spotted Lightning 46229 | -5/Hub_04(d) | Lost 3 parts (1p2w) 46246 | -5/Hub_04(d) | Entered Factory 46246 | -4/Factory | Evolved 2 slots: Propulsion x1, Utility x1 46248 | -4/Factory | Loaded intel: 90 trap records 46544 | -4/Factory | Repaired Centrium Heavy Treads 46599 | -4/Factory | Repaired Centrium Heavy Treads 46752 | -4/Factory | Found Adv. EM Shield 46758 | -4/Factory | Found Adv. EM Shield 46778 | -4/Factory | Build established: Scavenger-Skirmisher 46789 | -4/Factory | Identified exit to Upper Caves 47062 | -4/Factory | Lost 5 parts (3u2w) 47245 | -4/Factory | Build established: Scavenger-Tank 47396 | -4/Factory | System corruption reached 10% 47454 | -4/Factory | Loaded intel: 8 recycling unit locations 48177 | -4/Factory | Repaired Centrium Heavy Treads? 48338 | -4/Factory | Repaired Centrium Heavy Treads? 48371 | -4/Factory | Spotted B-86 Titan 48496 | -4/Factory | First assault squad dispatched 48505 | -4/Factory | Destroyed B-86 Titan 48977 | -4/Factory | Lost 7 parts (2p1n2u2w) 49228 | -4/Factory | Entered Upper Caves 49229 | -4/Upper Caves | Identified exit to Upper Caves 49857 | -4/Upper Caves | Build established: Scavenger-Skirmisher 50429 | -4/Upper Caves | Encountered a Warlord checkpoint 50521 | -4/Upper Caves | Learned 8 Research zone layouts 50757 | -4/Upper Caves | Attracted the attention of an 0b10 checkpoint 51024 | -4/Upper Caves | Entered another Upper Caves area 51249 | -4/Upper Caves | Discovered new exit (range 8) 51262 | -4/Upper Caves | Identified exit to Research 52024 | -4/Upper Caves | Encountered a Warlord checkpoint 52353 | -4/Upper Caves | Discovered new exit (range 18) 52557 | -4/Upper Caves | Identified exit to Zhirov 52902 | -4/Upper Caves | Entered Zhirov 52902 | -4/Zhirov | Discovered new exit (range 3) 52907 | -4/Zhirov | Identified exit to Proximity Caves 52934 | -4/Zhirov | Met Zhirov 52964 | -4/Zhirov | Learned location of Testing (-3) 52964 | -4/Zhirov | Learned location of Command (-1) 52979 | -4/Zhirov | Zhirov requested help retrieving the SGEMP Prototype 53005 | -4/Zhirov | Found Alien Artifact 53005 | -4/Zhirov | Identified Integrated Dissipator 53005 | -4/Zhirov | Installed Integrated Dissipator, increased core heat dissipation (+20) 53027 | -4/Zhirov | Found Alien Artifact 53191 | -4/Zhirov | Build established: Scavenger-Mutant 53210 | -4/Zhirov | Entered Proximity Caves 53496 | -3/Proximity Caves | Build established: Scavenger-Skirmisher 54267 | -3/Proximity Caves | Activated DRS Beacon 54725 | -3/Proximity Caves | Discovered exit to Research (range 18) 54861 | -3/Proximity Caves | Entered Research 54861 | -3/Research | Evolved 2 slots: Utility x2 54862 | -3/Research | Identified exit to Research 54863 | -3/Research | Loaded intel: 4 garrison access locations 54876 | -3/Research | Identified exit to Armory 54876 | -3/Research | Identified exit to Testing 55061 | -3/Research | Revision forces began assault on 0b10 55151 | -3/Research | Met up with Revision 17++ 55261 | -3/Research | Repaired Centrium Heavy Treads? 55353 | -3/Research | Repaired Centrium Medium Armor Plating 55524 | -3/Research | Found Prototype Launcher 55524 | -3/Research | Identified Adv. Micro-nuke Launcher 55561 | -3/Research | Research terminal network offline 55786 | -3/Research | Spotted Executioner 55787 | -3/Research | Spotted Striker 55787 | -3/Research | Entered Testing 55934 | -3/Testing | Found Prototype Launcher 55934 | -3/Testing | Identified Tactical Quantum Warhead 56078 | -3/Testing | Found Prototype Energy Cannon 56078 | -3/Testing | Identified Null Cannon 56486 | -3/Testing | Found Prototype Ballistic Gun 56486 | -3/Testing | Identified Hyp. Multirail 56651 | -3/Testing | Scanned by Researcher 56663 | -3/Testing | Build established: Scavenger-Tank 56664 | -3/Testing | Found Prototype Energy Gun 56664 | -3/Testing | Identified Warp Gun 56750 | -3/Testing | Found Prototype Hackware 56750 | -3/Testing | Identified System Mapper 56894 | -3/Testing | Protovariant out of control (PG-C6QDXS563H) 56894 | -3/Testing | Unleashed a protovariant (PG-C6QDXS563H) 57087 | -3/Testing | Found Prototype Energy Cannon 57087 | -3/Testing | Identified Disintegrator 57288 | -3/Testing | Found Prototype Device 57291 | -3/Testing | Identified Exp. EM Disruption Field 57691 | -3/Testing | Spotted Striker 57983 | -3/Testing | System corruption reached 10% 58009 | -3/Testing | Build established: Hacker-Tank 58030 | -3/Testing | Spotted Striker 58032 | -3/Testing | Destroyed Striker 58053 | -3/Testing | Destroyed Striker 58362 | -3/Testing | Build established: Scavenger-Tank 58648 | -3/Testing | Found Prototype Ballistic Cannon 58669 | -3/Testing | Identified Perforator 59148 | -3/Testing | Found Prototype Energy Cannon 59148 | -3/Testing | Identified Cld. Nova Cannon 59488 | -3/Testing | System corruption reached 30% 59490 | -3/Testing | Lost 3 parts (1n1u1w) 59537 | -3/Testing | First assault squad dispatched 59773 | -3/Testing | Lost 10 parts (1p1n2u6w) 59896 | -3/Testing | Crushed by falling debris 59912 | -3/Testing | Spotted Alpha 7 59927 | -3/Testing | Crushed by falling debris 59943 | -3/Testing | Crushed by falling debris 59949 | -3/Testing | Crushed by falling debris 59950 | -3/Testing | Core integrity fell below 50% 59957 | -3/Testing | Crushed by falling debris 59958 | -3/Testing | System corrupted Last Messages --------------- 59943_ Crushed by falling debris. 59943_ Adv. Visual Processing Unit destroyed. 59943_ System corrupted by crushing effect (+5). 59943_ Arm. Medium Treads destroyed. 59943_ System corrupted by crushing effect (+4). 59943_ Terrain Scanner crushed. 59949_ The unstable cave ceiling collapses. 59949_ Crushed by falling debris. 59949_ Med. Treads destroyed. 59949_ System corrupted by crushing effect (+2). 59957_ System corrupted: Heat flow error (+229). 59957_ The unstable cave ceiling collapses. 59957_ Crushed by falling debris. 59957_ System Shield destroyed. 59957_ System corrupted by crushing effect (+5). 59957_ Coil Gun destroyed. 59957_ System corrupted by crushing effect (+1). 59957_ Lgt. Particle Reactor destroyed. 59957_ System corrupted by crushing effect (+5). 59958_ Cogmind system terminally corrupted. Map ----- +----------------------------------------------------+ | ?????????????????????????????????????????????????? | | ?????????????????????????????????????????????????? | | ?????????????????????????????????????????????????? | | ????????????????????????????????????????##???????? | | ???????????????????????????????????????? #???????? | | ???????????????????????????????????????? #???????? | | ???????????????????????????????????????# ????????? | | ??????????????????????????????????##########?????? | | ??????????????????????????????????#"""" """#?????? | | ??????????????????????????????????##" """####??? | | ?????????????????????????##???????#!!! #??? | | ?????????????????????????# #??????#!!! """"" #### | | ??????????????????????????# #?????#!! """"" ""# | | ??????????????????????????##"###### = """"" ""# | | ??????????????????????????#^ ^ +![! S"# | | ??????????????????????????#^ ^ ^ #===! """" """# | | ??????????????????????????# +!! !=""""" """# | | ??????????????????????????# #* =[*""""" """# | | ??????????????????????????#### # =!% #### | | ?????????????????????????????# # /* #??? | | ??????????????????????????#### #*"" """ #??? | | ??????????????????????????# # ""F""" #??? | | ?????????????????????????## ! #! """"" #??? | | ????????????????????????### =[[* #############??? | | ???????????????????????#######== #??????????????? | | ???????????????????????# @####=% !#??????????????? | | ??????????????????????##!###?#%= #??????????????? | | ?????????????????????#####???#= #??????????????? | | ????????????????????##!##????# #??????????????? | | ???????????????????##]#####??# #???????###????? | | ??????????????????###!]!! #??# #############??? | | ??????????????????#########??# # #??? | | ?????????????????# =%#]! ????# # " " " #??? | | ????????????????# #!#==! #???# ! # " "" " #??? | | ???????????????# ###### #"T"# =% # " "" #??? | | ???????????????##?????# !| + #??? | | ??????????????????????# # " """[! #??? | | ???????????????????# "" """ " + """ "!*%! #??? | | ????????????????????""" """ """ # " "" |! #??? | | ?????????????????????T """ """ # ! ##?? | | ????????????????????"" """ """ # " "" ##?? | | ?????????????????????" """ """ # " "" " #??? | | ?????????????????????? """ """ # """""" #??? | | ??????????????????????# """ """ # #??? | | ?????????????????????## ? #######+#####??? | | ########??????????????/ ?? #?????# #??????? | | #??????????????/^ ^ ############## #??????? | | "" #??????????????# # + #??????? | | """ #??????????????# # """ ######??????? | | """ #??????????????# + """ """ #???????????? | +----------------------------------------------------+ Best States ------------- Heat Dissipation 104 Energy Generation 45 Energy Capacity 600 Matter Stores 550 Matter Capacity 550 Sight Range 20 Robot Scan Range 20 Terrain Scan Range 14 Terrain Scan Density 10 Jamming Range 16 Cloak Strength 2 Armor Coverage 900 Resistance: KI 25 Resistance: TH 20 Resistance: EM 50 Weapon Cycling 20 Evasion (%) 55 Targeting Accuracy 14 Launcher Accuracy 40 Recoil Reduction 6 Particle Charging 30 Kinecelleration 40 Offensive Hacking 20 Defensive Hacking 12 Item Schematics ----------------- Huge Storage Unit | -10/Materials | Hacked Weapon Mount | -6/Factory | Hacked Hvy. Mass Driver | -6/Zion | Archive Neutrino Core | -6/Zion | Archive Coil Gun | -6/Zion | Archive Phase Shifter | -6/Zion | Archive Imp. Component Analysis Suite | -6/Zion | Archive Lgt. Antimatter Reactor | -6/Zion | Archive Fission Core | -6/Zion | Archive Imp. Transmission Jammer | -6/Zion | Archive Adv. Melee Analysis Suite | -6/Zion | Archive Arm. Medium Treads | -6/Zion | Archive Power Amplifier | -6/Zion | Archive Adv. Plasma Cannon | -6/Zion | Archive Stasis Canceller | -6/Zion | Archive Adv. Cooling System | -6/Zion | Archive Focal Shield | -6/Zion | Archive Adv. Coolant Injector | -6/Zion | Archive Assault Drone Bay | -4/Zhirov | Free Exp. Heat Sink | -4/Zhirov | Free Exp. Optical Array | -4/Zhirov | Free Imp. Arc Thrower | -4/Zhirov | Free Exp. Matter Compressor | -3/Testing | Archive Exp. Signal Interpreter | -3/Testing | Archive Lgt. Antimatter Cannon | -3/Testing | Archive Stealth Drone Bay | -3/Testing | Archive Exp. Energy Well | -3/Testing | Archive Adv. Micro-nuke Launcher | -3/Testing | Archive Enh. Armored Medium Treads | -3/Testing | Archive Adv. Matter Compressor | -3/Testing | Archive Enh. Force Rifle | -3/Testing | Archive Hvy. Gatling Laser | -3/Testing | Archive Adv. Myomer Leg | -3/Testing | Archive Lgt. Neutrino Core | -3/Testing | Archive Exp. Focal Shield | -3/Testing | Archive Cld. Plasma Rifle | -3/Testing | Archive Prc. Matter Filter | -3/Testing | Archive Robot Schematics ------------------ M-14 Sweeper | -6/Zion | Archive G-50 Soldier | -6/Zion | Archive A-02 Transporter | -6/Zion | Archive E-15 Imp | -3/Testing | Archive O-32 Director | -3/Testing | Archive Fabricated ------------ Nothing Repaired ---------- Imp. Assault Rifle | 47% | -9/Materials Imp. Assault Rifle | 55% | -9/Materials Imp. Deuterium Engine | 42% | -8/Materials Med. Armor Plating | 22% | -8/Storage Enh. Autogun | 66% | -8/Storage Lgt. Treads | 62% | -8/Storage Imp. Deuterium Engine | 55% | -8/Storage Med. Treads | 29% | -6/Factory Hrd. Medium Armor Plating | 9% | -6/Factory Lgt. Treads | 10% | -6/Factory Lgt. Treads | 38% | -6/Factory Exp. Sensor Array | 62% | -6/Factory | Broken KE Penetrator | 38% | -5/Factory Imp. Medium Armor Plating | 34% | -5/Factory Gauss Rifle | 12% | -5/Factory Gauss Rifle | 6% | -5/Factory Centrium Heavy Treads | 20% | -4/Factory Centrium Heavy Treads | 28% | -4/Factory Centrium Heavy Treads | 8% | -4/Factory Centrium Heavy Treads | 30% | -4/Factory Centrium Heavy Treads | 3% | -3/Research Centrium Medium Armor Plating | 23% | -3/Research Alien Tech Used ----------------- Core Expander Integrated Dissipator Achievements -------------- Left-hand Path Challenges ------------ None Game ------ Seed AutogunSystemReactor Manual? 0 Play Time 06:48:48 Cumulative 280.1 hours Start 2025.06.05 @ 01:29:20 End 2025.06.07 @ 01:40:59 Sessions 7 Manual Loads 0 Difficulty Rogue Special Mode None Game No. 177 Rogue 177 Adventurer 0 Explorer 0 Win Type - Total 2 Types 1/0/0/1/0/0/0/0/0/0 Lore% 80 Gallery% 64 Achievement% 62 Wizard Run 0 Options --------- Layout 0 ASCII 0 Keyboard 0 Movement Mouse Keybinds 0 Fullscreen 1 Font 18/SmallcapsGlow Map View 76x50 Zoom Use 2% Tactical HUD 1 Map Filters NONE Filters NONE Steam 1 RUN: fc7c3758-96a8-4b0f-95af-4f09cde4dc1e